Workbook

Sheet INSTRUCTIONS
A1: If you want to use this spreadsheet more than once, I suggest saving this as a template: Go to File, Save As - Excel Macro-Enabled template. Then you can open a new spreadsheet via: File, New, My Templates | B1: My Stats | C1: Pre season | E1: Select from Pre season, Round 1, Round 2 or Round 3 from the dropdown list. | S1: Pre season
M2: Enter your goal weight in B3. As you go along each week and update your weight loss, this will be reflected in cell G3 and update how much weight you have to lose to reach your goal weight (cell K3) | S2: Round 1
B3: Goal weight | C3: 65 | G3: Current weight lost | H3: =SUM(P10) -> 0 | K3: Weight to lose | L3: =SUM(C8-C3-H3) -> 46.7 | S3: Round 2
C4: Enter the start date. The dates will automatically calculate the rest of the season dates.
C5: Enter your start weight in cell B8. The rest of your weight cells will be updated each week from the weekly menu/eating pages. This will then update your BMI, BMR, weight lost etc | S5: Round 3
C6: 2012-01-02 | D6: =SUM(C6)+2 -> 2012-01-04 | E6: =SUM(D6)+7 -> 2012-01-11 | F6: 2012-01-18 | G6: 2012-01-25 | H6: 2012-02-01 | I6: 2012-02-08 | J6: 2012-02-15 | K6: 2012-02-22 | L6: 2012-02-29 | M6: 2012-03-07 | N6: 2012-03-14 | O6: 2012-03-21 | P6: FINAL STATISTICS
A7: All cells shaded in grey on this sheet (these cells are not shaded on active sheet) are locked and do not need to be edited. These cells contain the functions and sums to add and subtract your weight loss, BMI, BMR etc. Cells highlighted in yellow are fields that need to be completed by you on the first set up (and weekly in the case of fat%, water% and bone density). | B7: Week | C7: Kick off | D7: 1 | E7: 2 | F7: 3 | G7: 4 | H7: 5 | I7: 6 | J7: 7 | K7: 8 | L7: 9 | M7: 10 | N7: 11 | O7: 12 | P7: Final weight
B8: Weight | C8: 111.7 | D8: ='Wk 1'!G11 -> 111.7 | E8: ='Wk 2'!G11 -> 111.7 | F8: ='Wk 3'!G11 -> 111.7 | G8: ='Wk 4'!G11 -> 111.7 | H8: ='Wk 5'!G11 -> 111.7 | I8: ='Wk 6'!G11 -> 111.7 | J8: ='Wk 7'!G11 -> 111.7 | K8: ='Wk 8'!G11 -> 111.7 | L8: ='Wk 9'!G11 -> 111.7 | M8: ='Wk 10'!G11 -> 111.7 | N8: ='Wk 11'!G11 -> 111.7 | O8: ='Wk 12'!G11 -> 111.7 | P8: =O8 -> 111.7
B9: Weight lost this week | D9: =SUM(C8-D8) -> 0 | E9: 0 | F9: 0 | G9: 0 | H9: 0 | I9: 0 | J9: 0 | K9: 0 | L9: 0 | M9: 0 | N9: 0 | O9: 0 | P9: Total weight lost
B10: Weight loss so far | D10: =SUM(C9:D9) -> 0 | E10: =SUM(D9:E9) -> 0 | F10: =SUM(D9:F9) -> 0 | G10: =SUM(D9:G9) -> 0 | H10: =SUM(D9:H9) -> 0 | I10: =SUM(D9:I9) -> 0 | J10: =SUM(D9:J9) -> 0 | K10: =SUM(D9:K9) -> 0 | L10: =SUM(D9:L9) -> 0 | M10: =SUM(D9:M9) -> 0 | N10: =SUM(D9:N9) -> 0 | O10: =SUM(D9:O9) -> 0 | P10: =SUM(D9:O9) -> 0 | Q10: Kgs
B11: % of starrt weight lost | D11: =+((D10)/(C8-B2)) -> 0 | E11: =+((E10)/(C8-B2)) -> 0 | F11: =+((F10)/(C8-B2)) -> 0 | G11: =+((G10)/(C8-B2)) -> 0 | H11: =+((H10)/(C8-B2)) -> 0 | I11: =+((I10)/(C8-B2)) -> 0 | J11: =+((J10)/(C8-B2)) -> 0 | K11: =+((K10)/(C8-B2)) -> 0 | L11: =+((L10)/(C8-B2)) -> 0 | M11: =+((M10)/(C8-B2)) -> 0 | N11: =+((N10)/(C8-B2)) -> 0 | O11: =+((O10)/(C8-B2)) -> 0 | P11: =+((P10)/(C8-B2)) -> 0 | Q11: of start weight lost
B12: % of goal achieved | D12: =+(D10/$L$3) -> 0 | E12: =+(E10/$L$3) -> 0 | F12: 0 | G12: 0 | H12: 0 | I12: 0 | J12: 0 | K12: 0 | L12: 0 | M12: 0 | N12: 0 | O12: 0 | P12: =+(P10/$L$3) -> 0 | Q12: of final goal achieved
B13: Fat % | C13: 40.5 | P13: =SUM(C13-O13) -> 40.5 | Q13: % fat lost
B14: Water % | C14: 43.4 | D14: If you have a set of scales that will measure your fat%, water% and bone density, you can insert those details here. | P14: =SUM(C14-O14) -> 43.4 | Q14: % water lost
B15: Bone density | C15: 7.3 | P15: =SUM(C15-O15) -> 7.3
B16: BMI | C16: =C8/($C$36*$C$36) -> 38.65051903 | D16: 38.65051903 | E16: 38.65051903 | F16: 38.65051903 | G16: 38.65051903 | H16: 38.65051903 | I16: 38.65051903 | J16: 38.65051903 | K16: 38.65051903 | L16: 38.65051903 | M16: 38.65051903 | N16: 38.65051903 | O16: 38.65051903 | P16: =O16 -> 38.65051903 | Q16: BMI
B17: BMR | C17: =655.1+(9.46*C8)+(1.85*C35)-(4.48*C33) -> 1869.482 | D17: =655.1+(9.46*D8)+(1.85*C35)-(4.48*C33) -> 1869.482 | E17: =655.1+(9.46*E8)+(1.85*C35)-(4.48*C33) -> 1869.482 | F17: =655.1+(9.46*F8)+(1.85*C35)-(4.48*C33) -> 1869.482 | G17: =655.1+(9.46*G8)+(1.85*C35)-(4.48*C33) -> 1869.482 | H17: =655.1+(9.46*H8)+(1.85*C35)-(4.48*C33) -> 1869.482 | I17: =655.1+(9.46*I8)+(1.85*C35)-(4.48*C33) -> 1869.482 | J17: =655.1+(9.46*J8)+(1.85*C35)-(4.48*C33) -> 1869.482 | K17: =655.1+(9.46*K8)+(1.85*C35)-(4.48*C33) -> 1869.482 | L17: =655.1+(9.46*L8)+(1.85*C35)-(4.48*C33) -> 1869.482 | M17: =655.1+(9.46*M8)+(1.85*C35)-(4.48*C33) -> 1869.482 | N17: =655.1+(9.46*N8)+(1.85*C35)-(4.48*C33) -> 1869.482 | O17: =655.1+(9.46*O8)+(1.85*C35)-(4.48*C33) -> 1869.482 | P17: =O17 -> 1869.482
P18: Total CMs lost
B19: Chest | P19: =SUM(C19-O19) -> 0
B20: Waist | P20: 0
B21: Hips | P21: 0
B22: Dist from knee | P22: 0
A23: The MY STATS page is locked to avoid the risk of overwriting any of the formulas. If you would like to change any of those cells however, the password to unlock is: password (oh yes, I'm original!!!) | B23: R Thigh | P23: 0
B24: L Thigh | P24: 0
B26: 1km time trial | P26: =C26-O26 -> 00:00:00
B27: Push ups | P27: =O27-C27 -> 0
B28: Wall sit | P28: =O28-C28 -> 00:00:00
B29: Ab stage | P29: -
B30: Sit'n'reach | P30: -
B32: Personal details | P32: Average weight loss per week
B33: Age | C33: 35 | P33: =(C8) -> 111.7 | Q33: Start weight
B34: Gender | C34: Female | P34: 0 | Q34: Current weight
B35: Height in Centimetres | C35: 170 | P35: 1 | Q35: Week #
B36: Height in Meters | C36: =CONVERT(C35,"cm","m") -> 1.7 | P36: =+(P33-P34)/P35 -> 111.7 | Q36: Average

Sheet EXAMPLE WEEK
A1: Week 1 | B1: THIS WEEKS GOALS: To stick to a week of healthy eating and to exercise at least three times over the course of the week. Ensure that I drink my minimum of 2 litres of water daily. | F1: TO ACHIEVE THIS I NEED TO: Fill out the whole weeks menu plan in here and stick to it. Organise my diary to fit in the exercise, and make use of the reminder function on my phone and not dismiss it and ignore it. | J1: How to use the weekly sheet:
J2: Update your weekly goals, and how you are going to achieve these goals.
A3: Calorie limit - 1200 | J3: Starting weight is automatically updated from the MY STATS page.
J4: Weekly weigh ins on Wednesday will transfer across to the following weeks to help keep MY STATS page looking neat and tidy. Overwrite this each week with new weigh-ins obviously.
J5: Water intake is set to 12 glasses a day and is just a little tick box. I find it helps me keep track of whether I'm drinking enough water.
J6: For those of you who do two training sessions a day, there are two rows for training. Enter what you have completed and how many calories burnt.
J7: Your BMR is automatically updated from the MY STATS page.
B11: Starting weight | C11: =' MY STATS'!B7 -> 111.7 | F11: Weekly Weigh In | G11: =C11 -> 111.7
B12: Monday | D12: Tuesday | F12: Wednesday | H12: Thursday | J12: Friday | L12: Saturday | N12: Sunday | P12: Notes
B13: =' MY STATS'!B5 -> 2012-01-02 | D13: =' MY STATS'!B5+1 -> 2012-01-03 | F13: =' MY STATS'!B5+2 -> 2012-01-04 | H13: =' MY STATS'!B5+3 -> 2012-01-05 | J13: =' MY STATS'!B5+4 -> 2012-01-06 | L13: =' MY STATS'!B5+5 -> 2012-01-07 | N13: =' MY STATS'!B5+6 -> 2012-01-08
B14: Notes: Aim to eat healthy for the day and drink 12 glasses of water. Exercise a little. | D14: Notes: | F14: Notes: | H14: Notes: | J14: Notes: | L14: Notes: Super Saturday Session for Training! | N14: Notes:
A15: Training Session 1 | B15: Walk around after work | C15: 350 | D15: Zumba | E15: 500 | F15: walk around after work | G15: 350 | H15: No training today | I15: 0 | J15: Zumba | K15: 500 | L15: Zumba | M15: 500 | N15: insert training plans here | O15: calories burnt here
A16: Training Session 2 | B16: Zumba | C16: 500 | D16: insert training plans here | E16: calories burnt here | F16: insert training plans here | G16: calories burnt here | H16: insert training plans here | I16: calories burnt here | J16: insert training plans here | K16: calories burnt here | L16: Walk/shuffle run | M16: 300 | N16: insert training plans here | O16: calories burnt here
A17: Water intake
A18: Breakfast
B19: 2 Pieces bread | C19: 170 | D19: Oats with 2t brown sugar, | F19: Oats with 2t brown sugar, | H19: Oats with 2t brown sugar, | J19: Oats with 2t brown sugar, | L19: Oats with 2t brown sugar, | N19: Oats with 2t brown sugar,
B20: 1tsp margarine | C20: 21 | D20: 1/2 cup milk and medium apple | E20: 307 | F20: 1/2 cup milk and medium apple | G20: 307 | H20: 1/2 cup milk and medium apple | I20: 307 | J20: 1/2 cup milk and medium apple | K20: 307 | L20: 1/2 cup milk and medium apple | M20: 307 | N20: 1/2 cup milk and medium apple | O20: 307
B21: 40g cheese | C21: 163
B23: 1 cup coffee | C23: 3
B24: 2t sugar (white) | C24: 30
B25: 1/2C Pura skimmer milk | C25: 63
B26: (standard coffee = 96 cals)
B27: sub-total | C27: =SUM(C18:C26) -> 450 | D27: sub-total | E27: =SUM(E18:E26) -> 307 | F27: sub-total | G27: =SUM(G18:G26) -> 307 | H27: sub-total | I27: =SUM(I18:I26) -> 307 | J27: sub-total | K27: =SUM(K18:K26) -> 307 | L27: sub-total | M27: =SUM(M18:M26) -> 307 | N27: sub-total | O27: =SUM(O18:O26) -> 307
A28: Lunch | B28: Leek and potato soup | C28: 213 | D28: Leek and potato soup | E28: 213 | F28: Chicken and corn soup | G28: 316 | H28: Chicken and corn soup | I28: 316 | J28: Tuna 6" subway, no cheese | K28: 300 | L28: Beetroot soup | M28: 256 | N28: Turkey and swiss cheese
N29: wrap, with salad | O29: 225
B32: sub-total | C32: =SUM(C28:C31) -> 213 | D32: sub-total | E32: =SUM(E28:E31) -> 213 | F32: sub-total | G32: =SUM(G28:G31) -> 316 | H32: sub-total | I32: =SUM(I28:I31) -> 316 | J32: sub-total | K32: =SUM(K28:K31) -> 300 | L32: sub-total | M32: =SUM(M28:M31) -> 256 | N32: sub-total | O32: =SUM(O28:O31) -> 225
A33: Dinner | B33: Hoisin beef stir fry | C33: 300 | D33: Nat's lasagna | E33: 320 | F33: Prawn pad thai | G33: 300 | H33: Cajun chickn, sweet potato | J33: Lamb roast | K33: 400 | L33: Lamb and bean casserole | N33: Chicken stir fry | O33: 285
H34: wedges and salad | I34: 300 | L34: with rice | M34: 378
B36: sub-total | C36: =SUM(C33:C35) -> 300 | D36: sub-total | E36: =SUM(E33:E35) -> 320 | F36: sub-total | G36: =SUM(G33:G35) -> 300 | H36: sub-total | I36: =SUM(I33:I35) -> 300 | J36: sub-total | K36: =SUM(K33:K35) -> 400 | L36: sub-total | M36: =SUM(M33:M35) -> 378 | N36: sub-total | O36: =SUM(O33:O35) -> 285
A37: Snacks | B37: Small apple | C37: 45 | D37: Be natural bar | E37: 117 | F37: 1 Forme satisfy strawberry yoghurt | G37: 85 | H37: Bodywise bar | I37: 121 | J37: Banana | K37: 99 | L37: 1 medium pear | M37: 71 | N37: Muffin | O37: 159
B38: 1 cup coffee (as per breakfast) | C38: 96 | D38: Punnet of strawberries | E38: 58 | F38: Punnet strawberries be natural bar | G38: 175 | H38: Medium orange | I38: 68 | L38: Banana muffin | M38: 105 | N38: 1 vanilla forme yoghurt | O38: 90 | P38: Weekly totals | R38: These cells give you an overview of your total calorie intake for the week, what your overall BMR is for the week, how many calories burnt through training, and what your overall energy balance is for the week. You want the energy balance to be in the minus. *7000 calories in deficit = 1kg weight loss (approximately)
B39: sub-total | C39: =SUM(C37:C38) -> 141 | D39: sub-total | E39: =SUM(E37:E38) -> 175 | F39: sub-total | G39: =SUM(G37:G38) -> 260 | H39: sub-total | I39: =SUM(I37:I38) -> 189 | J39: sub-total | K39: =SUM(K37:K38) -> 99 | L39: sub-total | M39: =SUM(M37:M38) -> 176 | N39: sub-total | O39: =SUM(O37:O38) -> 249 | P39: *7000 calories in deficit = 1kg weight loss (approximately)
A40: Total Calorie Intake | C40: =SUM(C27+C32+C36+C39) -> 1104 | E40: =SUM(E27+E32+E36+E39) -> 1015 | G40: =SUM(G27+G32+G36+G39) -> 1183 | I40: =SUM(I27+I32+I36+I39) -> 1112 | K40: =SUM(K27+K32+K36+K39) -> 1106 | M40: =SUM(M27+M32+M36+M39) -> 1117 | O40: =SUM(O27+O32+O36+O39) -> 1066 | P40: =SUM(O40,M40,K40,I40,G40,E40,C40) -> 7703 | Q40: Total Calorie Intake
A42: Basal Metabolic Rate (BMR) | B42: This is automatically filled in from BMR on My Stats tab | C42: =' MY STATS'!B16 -> 1869.482 | E42: =' MY STATS'!B16 -> 1869.482 | G42: =' MY STATS'!B16 -> 1869.482 | I42: =' MY STATS'!B16 -> 1869.482 | K42: =' MY STATS'!B16 -> 1869.482 | M42: =' MY STATS'!B16 -> 1869.482 | O42: =' MY STATS'!B16 -> 1869.482 | P42: =SUM(C42:O42) -> 13086.374 | Q42: Basal Metabolic Rate (BMR)
A44: Training | B44: Adds up cals burnt from training log above. | C44: =SUM(C15:C16) -> 850 | E44: =SUM(E15:E16) -> 500 | G44: =SUM(G15:G16) -> 350 | I44: =SUM(I15:I16) -> 0 | K44: =SUM(K15:K16) -> 500 | M44: =SUM(M15:M16) -> 800 | O44: =SUM(O15:O16) -> 0 | P44: =SUM(C44:O44) -> 3000 | Q44: Training
A46: Energy balance | B46: This is energy in (food) + energy out (BMR & training). You want more energy OUT than IN to lose weight & if you have done this, the number will be negative & appear red | C46: =SUM(C40-(C42+C44)) -> -1615.482 | E46: =SUM(E40-(E42+E44)) -> -1354.482 | G46: =SUM(G40-(G42+G44)) -> -1036.482 | I46: =SUM(I40-(I42+I44)) -> -757.482 | K46: =SUM(K40-(K42+K44)) -> -1263.482 | M46: =SUM(M40-(M42+M44)) -> -1552.482 | O46: =SUM(O40-(O42+O44)) -> -803.482 | P46: =SUM(C46:O46) -> -8383.374 | Q46: Energy balance

Sheet MY STATS
A1: My Stats | B1: Pre season | R1: Pre season
R2: Round 1
A3: Goal weight | B3: 65 | F3: Current weight lost | G3: =SUM(O9) -> 0 | J3: Weight to lose | K3: =SUM(B7-B3-G3) -> 46.7 | R3: Round 2
R4: Round 3
B5: 2012-01-02 | C5: =SUM(B5)+2 -> 2012-01-04 | D5: =SUM(C5)+7 -> 2012-01-11 | E5: 2012-01-18 | F5: 2012-01-25 | G5: 2012-02-01 | H5: 2012-02-08 | I5: 2012-02-15 | J5: 2012-02-22 | K5: 2012-02-29 | L5: 2012-03-07 | M5: 2012-03-14 | N5: 2012-03-21 | O5: FINAL STATISTICS
A6: Week | B6: Kick off | C6: 1 | D6: 2 | E6: 3 | F6: 4 | G6: 5 | H6: 6 | I6: 7 | J6: 8 | K6: 9 | L6: 10 | M6: 11 | N6: 12 | O6: Final weight
A7: Weight | B7: 111.7 | C7: ='Wk 1'!G11 -> 111.7 | D7: ='Wk 2'!G11 -> 111.7 | E7: ='Wk 3'!G11 -> 111.7 | F7: ='Wk 4'!G11 -> 111.7 | G7: ='Wk 5'!G11 -> 111.7 | H7: ='Wk 6'!G11 -> 111.7 | I7: ='Wk 7'!G11 -> 111.7 | J7: ='Wk 8'!G11 -> 111.7 | K7: ='Wk 9'!G11 -> 111.7 | L7: ='Wk 10'!G11 -> 111.7 | M7: ='Wk 11'!G11 -> 111.7 | N7: ='Wk 12'!G11 -> 111.7 | O7: =N7 -> 111.7
A8: Weight lost this week | C8: =SUM(B7-C7) -> 0 | D8: 0 | E8: 0 | F8: 0 | G8: 0 | H8: 0 | I8: 0 | J8: 0 | K8: 0 | L8: 0 | M8: 0 | N8: 0 | O8: Total weight lost
A9: Weight loss so far | C9: =SUM(B8:C8) -> 0 | D9: =SUM(C8:D8) -> 0 | E9: =SUM(C8:E8) -> 0 | F9: =SUM(C8:F8) -> 0 | G9: =SUM(C8:G8) -> 0 | H9: =SUM(C8:H8) -> 0 | I9: =SUM(C8:I8) -> 0 | J9: =SUM(C8:J8) -> 0 | K9: =SUM(C8:K8) -> 0 | L9: =SUM(C8:L8) -> 0 | M9: =SUM(C8:M8) -> 0 | N9: =SUM(C8:N8) -> 0 | O9: =SUM(C8:N8) -> 0 | P9: Kgs
A10: % of starrt weight lost | C10: =+((C9)/(B7-A2)) -> 0 | D10: =+((D9)/(B7-A2)) -> 0 | E10: =+((E9)/(B7-A2)) -> 0 | F10: =+((F9)/(B7-A2)) -> 0 | G10: =+((G9)/(B7-A2)) -> 0 | H10: =+((H9)/(B7-A2)) -> 0 | I10: =+((I9)/(B7-A2)) -> 0 | J10: =+((J9)/(B7-A2)) -> 0 | K10: =+((K9)/(B7-A2)) -> 0 | L10: =+((L9)/(B7-A2)) -> 0 | M10: =+((M9)/(B7-A2)) -> 0 | N10: =+((N9)/(B7-A2)) -> 0 | O10: =+((O9)/(B7-A2)) -> 0 | P10: of start weight lost
A11: % of goal achieved | C11: =+(C9/$K$3) -> 0 | D11: =+(D9/$K$3) -> 0 | E11: 0 | F11: 0 | G11: 0 | H11: 0 | I11: 0 | J11: 0 | K11: 0 | L11: 0 | M11: 0 | N11: 0 | O11: =+(O9/$K$3) -> 0 | P11: of final goal achieved
A12: Fat % | B12: 40.5 | O12: =SUM(B12-N12) -> 40.5 | P12: % fat lost
A13: Water % | B13: 43.4 | O13: =SUM(B13-N13) -> 43.4 | P13: % water lost
A14: Bone density | B14: 7.3 | O14: =SUM(B14-N14) -> 7.3
A15: BMI | B15: =B7/($B$36*$B$36) -> 38.65051903 | C15: 38.65051903 | D15: 38.65051903 | E15: 38.65051903 | F15: 38.65051903 | G15: 38.65051903 | H15: 38.65051903 | I15: 38.65051903 | J15: 38.65051903 | K15: 38.65051903 | L15: 38.65051903 | M15: 38.65051903 | N15: 38.65051903 | O15: =N15 -> 38.65051903 | P15: BMI
A16: BMR | B16: =655.1+(9.46*B7)+(1.85*B35)-(4.48*B33) -> 1869.482 | C16: =655.1+(9.46*C7)+(1.85*B35)-(4.48*B33) -> 1869.482 | D16: =655.1+(9.46*D7)+(1.85*B35)-(4.48*B33) -> 1869.482 | E16: =655.1+(9.46*E7)+(1.85*B35)-(4.48*B33) -> 1869.482 | F16: =655.1+(9.46*F7)+(1.85*B35)-(4.48*B33) -> 1869.482 | G16: =655.1+(9.46*G7)+(1.85*B35)-(4.48*B33) -> 1869.482 | H16: =655.1+(9.46*H7)+(1.85*B35)-(4.48*B33) -> 1869.482 | I16: =655.1+(9.46*I7)+(1.85*B35)-(4.48*B33) -> 1869.482 | J16: =655.1+(9.46*J7)+(1.85*B35)-(4.48*B33) -> 1869.482 | K16: =655.1+(9.46*K7)+(1.85*B35)-(4.48*B33) -> 1869.482 | L16: =655.1+(9.46*L7)+(1.85*B35)-(4.48*B33) -> 1869.482 | M16: =655.1+(9.46*M7)+(1.85*B35)-(4.48*B33) -> 1869.482 | N16: =655.1+(9.46*N7)+(1.85*B35)-(4.48*B33) -> 1869.482 | O16: =N16 -> 1869.482
O17: Total CMs lost
A18: Chest | O18: =SUM(B18-N18) -> 0
A19: Waist | O19: 0
A20: Hips | O20: 0
A21: L Thigh | O21: 0
A22: R Thigh | O22: 0
A23: L Arm
A24: R Arm | O24: 0
A26: 1km time trial | O26: =B26-N26 -> 00:00:00
A27: Push ups | O27: =N27-B27 -> 0
A28: Wall sit | O28: =N28-B28 -> 00:00:00
A29: Ab stage | O29: -
A30: Sit'n'reach | O30: -
A32: Personal details | O32: Average weight loss per week
A33: Age | B33: 35 | O33: =(B7) -> 111.7 | P33: Start weight
A34: Gender | B34: Female | O34: 0 | P34: Current weight
A35: Height in Centimetres | B35: 170 | O35: 1 | P35: Week #
A36: Height in Meters | B36: =CONVERT(B35,"cm","m") -> 1.7 | O36: =+(O33-O34)/O35 -> 111.7 | P36: Average

Sheet Fave foods
A1: Calorie calculator | D1: FAVOURITE FOODS
A2: Calories per 100g | B2: 378
A3: Serving size | B3: 65 | D3: Food & portion size / weight | E3: Calories | G3: Food & portion size / weight | H3: Calories | J3: Food & portion size / weight | K3: Calories | M3: Food & portion size / weight | N3: Calories
A4: Calories | B4: =SUM(B2/100)*(B3) -> 245.7 | D4: Fruits | G4: Dairy | J4: Breakfast | M4: Vegetables (raw)
D5: Apple (medium) | E5: 70 | G5: Forme satisfy yoghurt (berry cheesecake) | H5: 90 | J5: Brown sugar (1 teaspoon) | K5: 16 | M5: 100g Lettuce | N5: 10
A6: Calorie converter | D6: Apple (small) | E6: 45 | G6: Forme satisfy yoghurt (blueberry) | H6: 95 | J6: Brown sugar (2 teaspoons) | K6: 32 | M6: 100g Tomatoes | N6: 18
A7: Kilojoules | B7: 640 | D7: Banana (medium) | E7: 110 | G7: Forme satisfy yoghurt (caramel tart) | H7: 90 | J7: Crumpets (per crumpet) | K7: 83 | M7: 100g Red capsicum | N7: 25
A8: Converted to cals | B8: =SUM(B7/4.2) -> 152.3809524 | D8: Mandarine (medium) | E8: 42 | G8: Forme satisfy yoghurt (crumble) | H8: 92 | J8: Flora light margarine (1 Tablespoon) | K8: 85 | M8: 100g Cucumber | N8: 12
D9: Nectarine (medium) | E9: 48 | G9: Forme satisfy yoghurt (passionfruit) | H9: 94 | J9: Nescafe (1 teaspoon) | K9: 3 | M9: 100g Red cabbage | N9: 29
D10: Orange (mdium) | E10: 70 | G10: Forme satisfy yoghurt (strawberry) | H10: 85 | J10: Serve of oats (30g / 1/3 cup) | K10: 114 | M10: 100g Carrot | N10: 32
D11: Peach (large) | E11: 72 | G11: Forme satisfy yoghurt (vanilla) | H11: 90 | J11: Serve of oats (40g / 1/2 cup) | K11: 153 | M11: 100g Onion | N11: 30
D12: Peach (medium) | E12: 51 | G12: Pura skim milk (125ml / 1/2 cup) | H12: 63 | J12: Serve of oats (65g / 3/4 cup) | K12: 246 | M12: 100g Mushrooms | N12: 25
D13: Peach (small) | E13: 36 | G13: Pura skim milk (250ml / 1 cup) | H13: 125 | J13: Vegemite (1 teaspoon) | K13: 11 | M13: 100g Zucchini | N13: 15
D14: Punnet strawberries 250g (243g) | E14: 63 | G14: Pura Light Start milk (250ml / 1 cup) | H14: 110 | J14: White sugar (2 teaspoons) | K14: 30
D15: Punnet strawberries 250g | E15: 65 | G15: Pura Light Start milk (250ml / 1/2 cup) | H15: 55
D18: Condiments | G18: Seafood
D19: Soy sauce (1T) | E19: 15 | G19: 100g King George Whiting (raw) | H19: 86
G20: 85g Blue Fin Tuna | H20: 122
G21: 100g Scallops - steamed, grilled | H21: 112

Sheet Wk 1
A1: Week 1 | B1: THIS WEEKS GOALS: To stick to a week of healthy eating and to exercise at least three times over the course of the week. Ensure that I drink my minimum of 2 litres of water daily. | F1: TO ACHIEVE THIS I NEED TO: Fill out the whole weeks menu plan in here and stick to it. Organise my diary to fit in the exercise, and make use of the reminder function on my phone and not dismiss it and ignore it.
A3: Calorie limit - 1200
B11: Starting weight | C11: =' MY STATS'!B7 -> 111.7 | F11: Weekly Weigh In | G11: =C11 -> 111.7
B12: Monday | D12: Tuesday | F12: Wednesday | H12: Thursday | J12: Friday | L12: Saturday | N12: Sunday | P12: Notes
B13: =' MY STATS'!B5 -> 2012-01-02 | D13: =' MY STATS'!B5+1 -> 2012-01-03 | F13: =' MY STATS'!B5+2 -> 2012-01-04 | H13: =' MY STATS'!B5+3 -> 2012-01-05 | J13: =' MY STATS'!B5+4 -> 2012-01-06 | L13: =' MY STATS'!B5+5 -> 2012-01-07 | N13: =' MY STATS'!B5+6 -> 2012-01-08
B14: Notes: Aim to eat healthy for the day and drink 12 glasses of water. Exercise a little. | D14: Notes: | F14: Notes: | H14: Notes: | J14: Notes: | L14: Notes: Super Saturday Session for Training! | N14: Notes:
A15: Training Session 1 | B15: Walk around after work | C15: calories burnt here | D15: insert training plans here | E15: calories burnt here | F15: insert training plans here | G15: calories burnt here | H15: insert training plans here | I15: calories burnt here | J15: insert training plans here | K15: calories burnt here | L15: insert training plans here | M15: calories burnt here | N15: insert training plans here | O15: calories burnt here
A16: Training Session 2 | B16: insert training plans here | C16: calories burnt here | D16: insert training plans here | E16: calories burnt here | F16: insert training plans here | G16: calories burnt here | H16: insert training plans here | I16: calories burnt here | J16: insert training plans here | K16: calories burnt here | L16: insert training plans here | M16: calories burnt here | N16: insert training plans here | O16: calories burnt here
A17: Water intake
A18: Breakfast
B19: 2 Pieces bread | C19: 170 | D19: 2 pieces bread | E19: 175
B20: 1tsp margarine | C20: 21 | D20: 1/2 T butter | E20: 51
B21: 40g cheese | C21: 163 | D21: 2 slices cheddar cheese | E21: 140
B23: 1 cup coffee | C23: 3 | D23: Standard coffee | E23: 96
B24: 2t sugar (white) | C24: 30
B25: 1/2C Pura skimmer milk | C25: 63
B26: (standard coffee = 96 cals)
B27: sub-total | C27: =SUM(C18:C26) -> 450 | D27: sub-total | E27: =SUM(E18:E26) -> 462 | F27: sub-total | G27: =SUM(G18:G26) -> 0 | H27: sub-total | I27: =SUM(I18:I26) -> 0 | J27: sub-total | K27: =SUM(K18:K26) -> 0 | L27: sub-total | M27: =SUM(M18:M26) -> 0 | N27: sub-total | O27: =SUM(O18:O26) -> 0
A28: Lunch | B28: Cabbage, bacon and potato | C28: 400
B32: sub-total | C32: =SUM(C28:C31) -> 400 | D32: sub-total | E32: =SUM(E28:E31) -> 0 | F32: sub-total | G32: =SUM(G28:G31) -> 0 | H32: sub-total | I32: =SUM(I28:I31) -> 0 | J32: sub-total | K32: =SUM(K28:K31) -> 0 | L32: sub-total | M32: =SUM(M28:M31) -> 0 | N32: sub-total | O32: =SUM(O28:O31) -> 0
A33: Dinner | B33: Italian stew with pasta | C33: 550
B36: sub-total | C36: =SUM(C33:C35) -> 550 | D36: sub-total | E36: =SUM(E33:E35) -> 0 | F36: sub-total | G36: =SUM(G33:G35) -> 0 | H36: sub-total | I36: =SUM(I33:I35) -> 0 | J36: sub-total | K36: =SUM(K33:K35) -> 0 | L36: sub-total | M36: =SUM(M33:M35) -> 0 | N36: sub-total | O36: =SUM(O33:O35) -> 0
A37: Snacks | B37: 1/2 Cranberry mueslie bar | C37: 93 | D37: Apricot almond muesli bar | E37: 199
B38: 1 cup coffee (as per breakfast) | C38: 96 | P38: Weekly totals
B39: sub-total | C39: =SUM(C37:C38) -> 189 | D39: sub-total | E39: =SUM(E37:E38) -> 199 | F39: sub-total | G39: =SUM(G37:G38) -> 0 | H39: sub-total | I39: =SUM(I37:I38) -> 0 | J39: sub-total | K39: =SUM(K37:K38) -> 0 | L39: sub-total | M39: =SUM(M37:M38) -> 0 | N39: sub-total | O39: =SUM(O37:O38) -> 0 | P39: *7000 calories in deficit = 1kg weight loss (approximately)
A40: Total Calorie Intake | C40: =SUM(C27+C32+C36+C39) -> 1589 | E40: =SUM(E27+E32+E36+E39) -> 661 | G40: =SUM(G27+G32+G36+G39) -> 0 | I40: =SUM(I27+I32+I36+I39) -> 0 | K40: =SUM(K27+K32+K36+K39) -> 0 | M40: =SUM(M27+M32+M36+M39) -> 0 | O40: =SUM(O27+O32+O36+O39) -> 0 | P40: =SUM(O40,M40,K40,I40,G40,E40,C40) -> 2250 | Q40: Total Calorie Intake
A42: Basal Metabolic Rate (BMR) | C42: =' MY STATS'!B16 -> 1869.482 | E42: =' MY STATS'!B16 -> 1869.482 | G42: =' MY STATS'!C16 -> 1869.482 | I42: =' MY STATS'!C16 -> 1869.482 | K42: =' MY STATS'!C16 -> 1869.482 | M42: =' MY STATS'!C16 -> 1869.482 | O42: =' MY STATS'!C16 -> 1869.482 | P42: =SUM(C42:O42) -> 13086.374 | Q42: Basal Metabolic Rate (BMR)
A44: Training | C44: =SUM(C15:C16) -> 0 | E44: =SUM(E15:E16) -> 0 | G44: =SUM(G15:G16) -> 0 | I44: =SUM(I15:I16) -> 0 | K44: =SUM(K15:K16) -> 0 | M44: =SUM(M15:M16) -> 0 | O44: =SUM(O15:O16) -> 0 | P44: =SUM(C44:O44) -> 0 | Q44: Training
P45: =SUM(C46:O46) -> -10836.374 | Q45: Energy balance (Mon - Sun)
A46: Energy balance | C46: =SUM(C40-(C42+C44)) -> -280.482 | E46: =SUM(E40-(E42+E44)) -> -1208.482 | G46: =SUM(G40-(G42+G44)) -> -1869.482 | I46: =SUM(I40-(I42+I44)) -> -1869.482 | K46: =SUM(K40-(K42+K44)) -> -1869.482 | M46: =SUM(M40-(M42+M44)) -> -1869.482 | O46: =SUM(O40-(O42+O44)) -> -1869.482 | P46: =SUM(C46:E46) -> -1488.964 | Q46: Energy balance (Wed - Tue)

Sheet Wk 2
A1: Week 2 | B1: THIS WEEKS GOALS: | F1: TO ACHIEVE THIS I NEED TO:
A3: Calorie limit - 1200
F11: Weekly Weigh In | G11: ='Wk 1'!G11 -> 111.7
B12: Monday | D12: Tuesday | F12: Wednesday | H12: Thursday | J12: Friday | L12: Saturday | N12: Sunday | P12: Notes
B13: =' MY STATS'!D5-2 -> 2012-01-09 | D13: =' MY STATS'!D5-1 -> 2012-01-10 | F13: =' MY STATS'!D5 -> 2012-01-11 | H13: =' MY STATS'!D5+1 -> 2012-01-12 | J13: =' MY STATS'!D5+2 -> 2012-01-13 | L13: =' MY STATS'!D5+3 -> 2012-01-14 | N13: =' MY STATS'!D5+4 -> 2012-01-15
B14: Notes: | D14: Notes: | F14: Notes: | H14: Notes: | J14: Notes: | L14: Notes: Super Saturday Session for Training! | N14: Notes:
A15: Training Session 1 | B15: insert training plans here | C15: calories burnt here | D15: insert training plans here | E15: calories burnt here | F15: insert training plans here | G15: calories burnt here | H15: insert training plans here | I15: calories burnt here | J15: insert training plans here | K15: calories burnt here | L15: insert training plans here | M15: calories burnt here | N15: insert training plans here | O15: calories burnt here
A16: Training Session 2 | B16: insert training plans here | C16: calories burnt here | D16: insert training plans here | E16: calories burnt here | F16: insert training plans here | G16: calories burnt here | H16: insert training plans here | I16: calories burnt here | J16: insert training plans here | K16: calories burnt here | L16: insert training plans here | M16: calories burnt here | N16: insert training plans here | O16: calories burnt here
A17: Water intake
A18: Breakfast
B27: sub-total | C27: =SUM(C18:C26) -> 0 | D27: sub-total | E27: =SUM(E18:E26) -> 0 | F27: sub-total | G27: =SUM(G18:G26) -> 0 | H27: sub-total | I27: =SUM(I18:I26) -> 0 | J27: sub-total | K27: =SUM(K18:K26) -> 0 | L27: sub-total | M27: =SUM(M18:M26) -> 0 | N27: sub-total | O27: =SUM(O18:O26) -> 0
A28: Lunch
B32: sub-total | C32: =SUM(C28:C31) -> 0 | D32: sub-total | E32: =SUM(E28:E31) -> 0 | F32: sub-total | G32: =SUM(G28:G31) -> 0 | H32: sub-total | I32: =SUM(I28:I31) -> 0 | J32: sub-total | K32: =SUM(K28:K31) -> 0 | L32: sub-total | M32: =SUM(M28:M31) -> 0 | N32: sub-total | O32: =SUM(O28:O31) -> 0
A33: Dinner
B36: sub-total | C36: =SUM(C33:C35) -> 0 | D36: sub-total | E36: =SUM(E33:E35) -> 0 | F36: sub-total | G36: =SUM(G33:G35) -> 0 | H36: sub-total | I36: =SUM(I33:I35) -> 0 | J36: sub-total | K36: =SUM(K33:K35) -> 0 | L36: sub-total | M36: =SUM(M33:M35) -> 0 | N36: sub-total | O36: =SUM(O33:O35) -> 0
A37: Snacks
P38: Weekly totals
B39: sub-total | C39: =SUM(C37:C38) -> 0 | D39: sub-total | E39: =SUM(E37:E38) -> 0 | F39: sub-total | G39: =SUM(G37:G38) -> 0 | H39: sub-total | I39: =SUM(I37:I38) -> 0 | J39: sub-total | K39: =SUM(K37:K38) -> 0 | L39: sub-total | M39: =SUM(M37:M38) -> 0 | N39: sub-total | O39: =SUM(O37:O38) -> 0 | P39: *7000 calories in deficit = 1kg weight loss (approximately)
A40: Total Calorie Intake | C40: =SUM(C27+C32+C36+C39) -> 0 | E40: =SUM(E27+E32+E36+E39) -> 0 | G40: =SUM(G27+G32+G36+G39) -> 0 | I40: =SUM(I27+I32+I36+I39) -> 0 | K40: =SUM(K27+K32+K36+K39) -> 0 | M40: =SUM(M27+M32+M36+M39) -> 0 | O40: =SUM(O27+O32+O36+O39) -> 0 | P40: =SUM(O40,M40,K40,I40,G40,E40,C40) -> 0 | Q40: Total Calorie Intake
A42: Basal Metabolic Rate (BMR) | C42: =' MY STATS'!C16 -> 1869.482 | E42: =' MY STATS'!C16 -> 1869.482 | G42: =' MY STATS'!D16 -> 1869.482 | I42: =' MY STATS'!D16 -> 1869.482 | K42: =' MY STATS'!D16 -> 1869.482 | M42: =' MY STATS'!D16 -> 1869.482 | O42: =' MY STATS'!D16 -> 1869.482 | P42: =SUM(C42:O42) -> 13086.374 | Q42: Basal Metabolic Rate (BMR)
A44: Training | C44: =SUM(C15:C16) -> 0 | E44: =SUM(E15:E16) -> 0 | G44: =SUM(G15:G16) -> 0 | I44: =SUM(I15:I16) -> 0 | K44: =SUM(K15:K16) -> 0 | M44: =SUM(M15:M16) -> 0 | O44: =SUM(O15:O16) -> 0 | P44: =SUM(C44:O44) -> 0 | Q44: Training
P45: =SUM(C46:O46) -> -13086.374 | Q45: Energy balance (Mon - Sun)
A46: Energy balance | C46: =SUM(C40-(C42+C44)) -> -1869.482 | E46: =SUM(E40-(E42+E44)) -> -1869.482 | G46: =SUM(G40-(G42+G44)) -> -1869.482 | I46: =SUM(I40-(I42+I44)) -> -1869.482 | K46: =SUM(K40-(K42+K44)) -> -1869.482 | M46: =SUM(M40-(M42+M44)) -> -1869.482 | O46: =SUM(O40-(O42+O44)) -> -1869.482 | P46: =SUM('Wk 1'!G46:O46)+SUM(C46:E46) -> -13086.374 | Q46: Energy balance (Wed - Tue)

Sheet Wk 3
A1: Week 3 | B1: THIS WEEKS GOALS: | F1: TO ACHIEVE THIS I NEED TO:
A3: Calorie limit - 1200
F11: Weekly Weigh In | G11: ='Wk 2'!G11 -> 111.7
B12: Monday | D12: Tuesday | F12: Wednesday | H12: Thursday | J12: Friday | L12: Saturday | N12: Sunday | P12: Notes
B13: =' MY STATS'!E5-2 -> 2012-01-16 | D13: =' MY STATS'!E5-1 -> 2012-01-17 | F13: =' MY STATS'!E5 -> 2012-01-18 | H13: =' MY STATS'!E5+1 -> 2012-01-19 | J13: =' MY STATS'!E5+2 -> 2012-01-20 | L13: =' MY STATS'!E5+3 -> 2012-01-21 | N13: =' MY STATS'!E5+4 -> 2012-01-22
B14: Notes: | D14: Notes: | F14: Notes: | H14: Notes: | J14: Notes: | L14: Notes: Super Saturday Session for Training! | N14: Notes:
A15: Training Session 1 | B15: insert training plans here | C15: calories burnt here | D15: insert training plans here | E15: calories burnt here | F15: insert training plans here | G15: calories burnt here | H15: insert training plans here | I15: calories burnt here | J15: insert training plans here | K15: calories burnt here | L15: insert training plans here | M15: calories burnt here | N15: insert training plans here | O15: calories burnt here
A16: Training Session 2 | B16: insert training plans here | C16: calories burnt here | D16: insert training plans here | E16: calories burnt here | F16: insert training plans here | G16: calories burnt here | H16: insert training plans here | I16: calories burnt here | J16: insert training plans here | K16: calories burnt here | L16: insert training plans here | M16: calories burnt here | N16: insert training plans here | O16: calories burnt here
A17: Water intake
A18: Breakfast
B27: sub-total | C27: =SUM(C18:C26) -> 0 | D27: sub-total | E27: =SUM(E18:E26) -> 0 | F27: sub-total | G27: =SUM(G18:G26) -> 0 | H27: sub-total | I27: =SUM(I18:I26) -> 0 | J27: sub-total | K27: =SUM(K18:K26) -> 0 | L27: sub-total | M27: =SUM(M18:M26) -> 0 | N27: sub-total | O27: =SUM(O18:O26) -> 0
A28: Lunch
B32: sub-total | C32: =SUM(C28:C31) -> 0 | D32: sub-total | E32: =SUM(E28:E31) -> 0 | F32: sub-total | G32: =SUM(G28:G31) -> 0 | H32: sub-total | I32: =SUM(I28:I31) -> 0 | J32: sub-total | K32: =SUM(K28:K31) -> 0 | L32: sub-total | M32: =SUM(M28:M31) -> 0 | N32: sub-total | O32: =SUM(O28:O31) -> 0
A33: Dinner
B36: sub-total | C36: =SUM(C33:C35) -> 0 | D36: sub-total | E36: =SUM(E33:E35) -> 0 | F36: sub-total | G36: =SUM(G33:G35) -> 0 | H36: sub-total | I36: =SUM(I33:I35) -> 0 | J36: sub-total | K36: =SUM(K33:K35) -> 0 | L36: sub-total | M36: =SUM(M33:M35) -> 0 | N36: sub-total | O36: =SUM(O33:O35) -> 0
A37: Snacks
P38: Weekly totals
B39: sub-total | C39: =SUM(C37:C38) -> 0 | D39: sub-total | E39: =SUM(E37:E38) -> 0 | F39: sub-total | G39: =SUM(G37:G38) -> 0 | H39: sub-total | I39: =SUM(I37:I38) -> 0 | J39: sub-total | K39: =SUM(K37:K38) -> 0 | L39: sub-total | M39: =SUM(M37:M38) -> 0 | N39: sub-total | O39: =SUM(O37:O38) -> 0 | P39: *7000 calories in deficit = 1kg weight loss (approximately)
A40: Total Calorie Intake | C40: =SUM(C27+C32+C36+C39) -> 0 | E40: =SUM(E27+E32+E36+E39) -> 0 | G40: =SUM(G27+G32+G36+G39) -> 0 | I40: =SUM(I27+I32+I36+I39) -> 0 | K40: =SUM(K27+K32+K36+K39) -> 0 | M40: =SUM(M27+M32+M36+M39) -> 0 | O40: =SUM(O27+O32+O36+O39) -> 0 | P40: =SUM(O40,M40,K40,I40,G40,E40,C40) -> 0 | Q40: Total Calorie Intake
A42: Basal Metabolic Rate (BMR) | C42: =' MY STATS'!D16 -> 1869.482 | E42: =' MY STATS'!D16 -> 1869.482 | G42: =' MY STATS'!E16 -> 1869.482 | I42: =' MY STATS'!E16 -> 1869.482 | K42: =' MY STATS'!E16 -> 1869.482 | M42: =' MY STATS'!E16 -> 1869.482 | O42: =' MY STATS'!E16 -> 1869.482 | P42: =SUM(C42:O42) -> 13086.374 | Q42: Basal Metabolic Rate (BMR)
A44: Training | C44: =SUM(C15:C16) -> 0 | E44: =SUM(E15:E16) -> 0 | G44: =SUM(G15:G16) -> 0 | I44: =SUM(I15:I16) -> 0 | K44: =SUM(K15:K16) -> 0 | M44: =SUM(M15:M16) -> 0 | O44: =SUM(O15:O16) -> 0 | P44: =SUM(C44:O44) -> 0 | Q44: Training
P45: =SUM(C46:O46) -> -13086.374 | Q45: Energy balance (Mon - Sun)
A46: Energy balance | C46: =SUM(C40-(C42+C44)) -> -1869.482 | E46: =SUM(E40-(E42+E44)) -> -1869.482 | G46: =SUM(G40-(G42+G44)) -> -1869.482 | I46: =SUM(I40-(I42+I44)) -> -1869.482 | K46: =SUM(K40-(K42+K44)) -> -1869.482 | M46: =SUM(M40-(M42+M44)) -> -1869.482 | O46: =SUM(O40-(O42+O44)) -> -1869.482 | P46: =SUM('Wk 2'!G46:O46)+SUM(C46:E46) -> -13086.374 | Q46: Energy balance (Wed - Tue)

Sheet Wk 4
A1: Week 4 | B1: THIS WEEKS GOALS: | F1: TO ACHIEVE THIS I NEED TO:
A3: Calorie limit - 1200
F11: Weekly Weigh In | G11: ='Wk 3'!G11 -> 111.7
B12: Monday | D12: Tuesday | F12: Wednesday | H12: Thursday | J12: Friday | L12: Saturday | N12: Sunday | P12: Notes
B13: =' MY STATS'!F5-2 -> 2012-01-23 | D13: =' MY STATS'!F5-1 -> 2012-01-24 | F13: =' MY STATS'!F5 -> 2012-01-25 | H13: =' MY STATS'!F5+1 -> 2012-01-26 | J13: =' MY STATS'!F5+2 -> 2012-01-27 | L13: =' MY STATS'!F5+3 -> 2012-01-28 | N13: =' MY STATS'!F5+4 -> 2012-01-29
B14: Notes: | D14: Notes: | F14: Notes: | H14: Notes: | J14: Notes: | L14: Notes: Super Saturday Session for Training! | N14: Notes:
A15: Training Session 1 | B15: insert training plans here | C15: calories burnt here | D15: insert training plans here | E15: calories burnt here | F15: insert training plans here | G15: calories burnt here | H15: insert training plans here | I15: calories burnt here | J15: insert training plans here | K15: calories burnt here | L15: insert training plans here | M15: calories burnt here | N15: insert training plans here | O15: calories burnt here
A16: Training Session 2 | B16: insert training plans here | C16: calories burnt here | D16: insert training plans here | E16: calories burnt here | F16: insert training plans here | G16: calories burnt here | H16: insert training plans here | I16: calories burnt here | J16: insert training plans here | K16: calories burnt here | L16: insert training plans here | M16: calories burnt here | N16: insert training plans here | O16: calories burnt here
A17: Water intake
A18: Breakfast
B27: sub-total | C27: =SUM(C18:C26) -> 0 | D27: sub-total | E27: =SUM(E18:E26) -> 0 | F27: sub-total | G27: =SUM(G18:G26) -> 0 | H27: sub-total | I27: =SUM(I18:I26) -> 0 | J27: sub-total | K27: =SUM(K18:K26) -> 0 | L27: sub-total | M27: =SUM(M18:M26) -> 0 | N27: sub-total | O27: =SUM(O18:O26) -> 0
A28: Lunch
B32: sub-total | C32: =SUM(C28:C31) -> 0 | D32: sub-total | E32: =SUM(E28:E31) -> 0 | F32: sub-total | G32: =SUM(G28:G31) -> 0 | H32: sub-total | I32: =SUM(I28:I31) -> 0 | J32: sub-total | K32: =SUM(K28:K31) -> 0 | L32: sub-total | M32: =SUM(M28:M31) -> 0 | N32: sub-total | O32: =SUM(O28:O31) -> 0
A33: Dinner
B36: sub-total | C36: =SUM(C33:C35) -> 0 | D36: sub-total | E36: =SUM(E33:E35) -> 0 | F36: sub-total | G36: =SUM(G33:G35) -> 0 | H36: sub-total | I36: =SUM(I33:I35) -> 0 | J36: sub-total | K36: =SUM(K33:K35) -> 0 | L36: sub-total | M36: =SUM(M33:M35) -> 0 | N36: sub-total | O36: =SUM(O33:O35) -> 0
A37: Snacks
P38: Weekly totals
B39: sub-total | C39: =SUM(C37:C38) -> 0 | D39: sub-total | E39: =SUM(E37:E38) -> 0 | F39: sub-total | G39: =SUM(G37:G38) -> 0 | H39: sub-total | I39: =SUM(I37:I38) -> 0 | J39: sub-total | K39: =SUM(K37:K38) -> 0 | L39: sub-total | M39: =SUM(M37:M38) -> 0 | N39: sub-total | O39: =SUM(O37:O38) -> 0 | P39: *7000 calories in deficit = 1kg weight loss (approximately)
A40: Total Calorie Intake | C40: =SUM(C27+C32+C36+C39) -> 0 | E40: =SUM(E27+E32+E36+E39) -> 0 | G40: =SUM(G27+G32+G36+G39) -> 0 | I40: =SUM(I27+I32+I36+I39) -> 0 | K40: =SUM(K27+K32+K36+K39) -> 0 | M40: =SUM(M27+M32+M36+M39) -> 0 | O40: =SUM(O27+O32+O36+O39) -> 0 | P40: =SUM(O40,M40,K40,I40,G40,E40,C40) -> 0 | Q40: Total Calorie Intake
A42: Basal Metabolic Rate (BMR) | C42: =' MY STATS'!E16 -> 1869.482 | E42: =' MY STATS'!E16 -> 1869.482 | G42: =' MY STATS'!F16 -> 1869.482 | I42: =' MY STATS'!F16 -> 1869.482 | K42: =' MY STATS'!F16 -> 1869.482 | M42: =' MY STATS'!F16 -> 1869.482 | O42: =' MY STATS'!F16 -> 1869.482 | P42: =SUM(C42:O42) -> 13086.374 | Q42: Basal Metabolic Rate (BMR)
A44: Training | C44: =SUM(C15:C16) -> 0 | E44: =SUM(E15:E16) -> 0 | G44: =SUM(G15:G16) -> 0 | I44: =SUM(I15:I16) -> 0 | K44: =SUM(K15:K16) -> 0 | M44: =SUM(M15:M16) -> 0 | O44: =SUM(O15:O16) -> 0 | P44: =SUM(C44:O44) -> 0 | Q44: Training
P45: =SUM(C46:O46) -> -13086.374 | Q45: Energy balance (Mon - Sun)
A46: Energy balance | C46: =SUM(C40-(C42+C44)) -> -1869.482 | E46: =SUM(E40-(E42+E44)) -> -1869.482 | G46: =SUM(G40-(G42+G44)) -> -1869.482 | I46: =SUM(I40-(I42+I44)) -> -1869.482 | K46: =SUM(K40-(K42+K44)) -> -1869.482 | M46: =SUM(M40-(M42+M44)) -> -1869.482 | O46: =SUM(O40-(O42+O44)) -> -1869.482 | P46: =SUM('Wk 3'!G46:O46)+SUM(C46:E46) -> -13086.374 | Q46: Energy balance (Wed - Tue)

Sheet Wk 5
A1: Week 5 | B1: THIS WEEKS GOALS: | F1: TO ACHIEVE THIS I NEED TO:
A3: Calorie limit - 1200
F11: Weekly Weigh In | G11: ='Wk 4'!G11 -> 111.7
B12: Monday | D12: Tuesday | F12: Wednesday | H12: Thursday | J12: Friday | L12: Saturday | N12: Sunday | P12: Notes
B13: =' MY STATS'!G5-2 -> 2012-01-30 | D13: =' MY STATS'!G5-1 -> 2012-01-31 | F13: =' MY STATS'!G5 -> 2012-02-01 | H13: =' MY STATS'!G5+1 -> 2012-02-02 | J13: =' MY STATS'!G5+2 -> 2012-02-03 | L13: =' MY STATS'!G5+3 -> 2012-02-04 | N13: =' MY STATS'!G5+4 -> 2012-02-05
B14: Notes: | D14: Notes: | F14: Notes: | H14: Notes: | J14: Notes: | L14: Notes: Super Saturday Session for Training! | N14: Notes:
A15: Training Session 1 | B15: insert training plans here | C15: calories burnt here | D15: insert training plans here | E15: calories burnt here | F15: insert training plans here | G15: calories burnt here | H15: insert training plans here | I15: calories burnt here | J15: insert training plans here | K15: calories burnt here | L15: insert training plans here | M15: calories burnt here | N15: insert training plans here | O15: calories burnt here
A16: Training Session 2 | B16: insert training plans here | C16: calories burnt here | D16: insert training plans here | E16: calories burnt here | F16: insert training plans here | G16: calories burnt here | H16: insert training plans here | I16: calories burnt here | J16: insert training plans here | K16: calories burnt here | L16: insert training plans here | M16: calories burnt here | N16: insert training plans here | O16: calories burnt here
A17: Water intake
A18: Breakfast
B27: sub-total | C27: =SUM(C18:C26) -> 0 | D27: sub-total | E27: =SUM(E18:E26) -> 0 | F27: sub-total | G27: =SUM(G18:G26) -> 0 | H27: sub-total | I27: =SUM(I18:I26) -> 0 | J27: sub-total | K27: =SUM(K18:K26) -> 0 | L27: sub-total | M27: =SUM(M18:M26) -> 0 | N27: sub-total | O27: =SUM(O18:O26) -> 0
A28: Lunch
B32: sub-total | C32: =SUM(C28:C31) -> 0 | D32: sub-total | E32: =SUM(E28:E31) -> 0 | F32: sub-total | G32: =SUM(G28:G31) -> 0 | H32: sub-total | I32: =SUM(I28:I31) -> 0 | J32: sub-total | K32: =SUM(K28:K31) -> 0 | L32: sub-total | M32: =SUM(M28:M31) -> 0 | N32: sub-total | O32: =SUM(O28:O31) -> 0
A33: Dinner
B36: sub-total | C36: =SUM(C33:C35) -> 0 | D36: sub-total | E36: =SUM(E33:E35) -> 0 | F36: sub-total | G36: =SUM(G33:G35) -> 0 | H36: sub-total | I36: =SUM(I33:I35) -> 0 | J36: sub-total | K36: =SUM(K33:K35) -> 0 | L36: sub-total | M36: =SUM(M33:M35) -> 0 | N36: sub-total | O36: =SUM(O33:O35) -> 0
A37: Snacks
P38: Weekly totals
B39: sub-total | C39: =SUM(C37:C38) -> 0 | D39: sub-total | E39: =SUM(E37:E38) -> 0 | F39: sub-total | G39: =SUM(G37:G38) -> 0 | H39: sub-total | I39: =SUM(I37:I38) -> 0 | J39: sub-total | K39: =SUM(K37:K38) -> 0 | L39: sub-total | M39: =SUM(M37:M38) -> 0 | N39: sub-total | O39: =SUM(O37:O38) -> 0 | P39: *7000 calories in deficit = 1kg weight loss (approximately)
A40: Total Calorie Intake | C40: =SUM(C27+C32+C36+C39) -> 0 | E40: =SUM(E27+E32+E36+E39) -> 0 | G40: =SUM(G27+G32+G36+G39) -> 0 | I40: =SUM(I27+I32+I36+I39) -> 0 | K40: =SUM(K27+K32+K36+K39) -> 0 | M40: =SUM(M27+M32+M36+M39) -> 0 | O40: =SUM(O27+O32+O36+O39) -> 0 | P40: =SUM(O40,M40,K40,I40,G40,E40,C40) -> 0 | Q40: Total Calorie Intake
A42: Basal Metabolic Rate (BMR) | C42: =' MY STATS'!F16 -> 1869.482 | E42: =' MY STATS'!F16 -> 1869.482 | G42: =' MY STATS'!G16 -> 1869.482 | I42: =' MY STATS'!G16 -> 1869.482 | K42: =' MY STATS'!G16 -> 1869.482 | M42: =' MY STATS'!G16 -> 1869.482 | O42: =' MY STATS'!G16 -> 1869.482 | P42: =SUM(C42:O42) -> 13086.374 | Q42: Basal Metabolic Rate (BMR)
A44: Training | C44: =SUM(C15:C16) -> 0 | E44: =SUM(E15:E16) -> 0 | G44: =SUM(G15:G16) -> 0 | I44: =SUM(I15:I16) -> 0 | K44: =SUM(K15:K16) -> 0 | M44: =SUM(M15:M16) -> 0 | O44: =SUM(O15:O16) -> 0 | P44: =SUM(C44:O44) -> 0 | Q44: Training
P45: =SUM(C46:O46) -> -13086.374 | Q45: Energy balance (Mon - Sun)
A46: Energy balance | C46: =SUM(C40-(C42+C44)) -> -1869.482 | E46: =SUM(E40-(E42+E44)) -> -1869.482 | G46: =SUM(G40-(G42+G44)) -> -1869.482 | I46: =SUM(I40-(I42+I44)) -> -1869.482 | K46: =SUM(K40-(K42+K44)) -> -1869.482 | M46: =SUM(M40-(M42+M44)) -> -1869.482 | O46: =SUM(O40-(O42+O44)) -> -1869.482 | P46: =SUM('Wk 4'!G46:O46)+SUM(C46:E46) -> -13086.374 | Q46: Energy balance (Wed - Tue)

Sheet Wk 6
A1: Week 6 | B1: THIS WEEKS GOALS: | F1: TO ACHIEVE THIS I NEED TO:
A3: Calorie limit - 1200
F11: Weekly Weigh In | G11: ='Wk 5'!G11 -> 111.7
B12: Monday | D12: Tuesday | F12: Wednesday | H12: Thursday | J12: Friday | L12: Saturday | N12: Sunday | P12: Notes
B13: =' MY STATS'!H5-2 -> 2012-02-06 | D13: =' MY STATS'!H5-1 -> 2012-02-07 | F13: =' MY STATS'!H5 -> 2012-02-08 | H13: =' MY STATS'!H5+1 -> 2012-02-09 | J13: =' MY STATS'!H5+2 -> 2012-02-10 | L13: =' MY STATS'!H5+3 -> 2012-02-11 | N13: =' MY STATS'!H5+4 -> 2012-02-12
B14: Notes: | D14: Notes: | F14: Notes: | H14: Notes: | J14: Notes: | L14: Notes: Super Saturday Session for Training! | N14: Notes:
A15: Training Session 1 | B15: insert training plans here | C15: calories burnt here | D15: insert training plans here | E15: calories burnt here | F15: insert training plans here | G15: calories burnt here | H15: insert training plans here | I15: calories burnt here | J15: insert training plans here | K15: calories burnt here | L15: insert training plans here | M15: calories burnt here | N15: insert training plans here | O15: calories burnt here
A16: Training Session 2 | B16: insert training plans here | C16: calories burnt here | D16: insert training plans here | E16: calories burnt here | F16: insert training plans here | G16: calories burnt here | H16: insert training plans here | I16: calories burnt here | J16: insert training plans here | K16: calories burnt here | L16: insert training plans here | M16: calories burnt here | N16: insert training plans here | O16: calories burnt here
A17: Water intake
A18: Breakfast
B27: sub-total | C27: =SUM(C18:C26) -> 0 | D27: sub-total | E27: =SUM(E18:E26) -> 0 | F27: sub-total | G27: =SUM(G18:G26) -> 0 | H27: sub-total | I27: =SUM(I18:I26) -> 0 | J27: sub-total | K27: =SUM(K18:K26) -> 0 | L27: sub-total | M27: =SUM(M18:M26) -> 0 | N27: sub-total | O27: =SUM(O18:O26) -> 0
A28: Lunch
B32: sub-total | C32: =SUM(C28:C31) -> 0 | D32: sub-total | E32: =SUM(E28:E31) -> 0 | F32: sub-total | G32: =SUM(G28:G31) -> 0 | H32: sub-total | I32: =SUM(I28:I31) -> 0 | J32: sub-total | K32: =SUM(K28:K31) -> 0 | L32: sub-total | M32: =SUM(M28:M31) -> 0 | N32: sub-total | O32: =SUM(O28:O31) -> 0
A33: Dinner
B36: sub-total | C36: =SUM(C33:C35) -> 0 | D36: sub-total | E36: =SUM(E33:E35) -> 0 | F36: sub-total | G36: =SUM(G33:G35) -> 0 | H36: sub-total | I36: =SUM(I33:I35) -> 0 | J36: sub-total | K36: =SUM(K33:K35) -> 0 | L36: sub-total | M36: =SUM(M33:M35) -> 0 | N36: sub-total | O36: =SUM(O33:O35) -> 0
A37: Snacks
P38: Weekly totals
B39: sub-total | C39: =SUM(C37:C38) -> 0 | D39: sub-total | E39: =SUM(E37:E38) -> 0 | F39: sub-total | G39: =SUM(G37:G38) -> 0 | H39: sub-total | I39: =SUM(I37:I38) -> 0 | J39: sub-total | K39: =SUM(K37:K38) -> 0 | L39: sub-total | M39: =SUM(M37:M38) -> 0 | N39: sub-total | O39: =SUM(O37:O38) -> 0 | P39: *7000 calories in deficit = 1kg weight loss (approximately)
A40: Total Calorie Intake | C40: =SUM(C27+C32+C36+C39) -> 0 | E40: =SUM(E27+E32+E36+E39) -> 0 | G40: =SUM(G27+G32+G36+G39) -> 0 | I40: =SUM(I27+I32+I36+I39) -> 0 | K40: =SUM(K27+K32+K36+K39) -> 0 | M40: =SUM(M27+M32+M36+M39) -> 0 | O40: =SUM(O27+O32+O36+O39) -> 0 | P40: =SUM(O40,M40,K40,I40,G40,E40,C40) -> 0 | Q40: Total Calorie Intake
A42: Basal Metabolic Rate (BMR) | C42: =' MY STATS'!G16 -> 1869.482 | E42: =' MY STATS'!G16 -> 1869.482 | G42: =' MY STATS'!H16 -> 1869.482 | I42: =' MY STATS'!H16 -> 1869.482 | K42: =' MY STATS'!H16 -> 1869.482 | M42: =' MY STATS'!H16 -> 1869.482 | O42: =' MY STATS'!H16 -> 1869.482 | P42: =SUM(C42:O42) -> 13086.374 | Q42: Basal Metabolic Rate (BMR)
A44: Training | C44: =SUM(C15:C16) -> 0 | E44: =SUM(E15:E16) -> 0 | G44: =SUM(G15:G16) -> 0 | I44: =SUM(I15:I16) -> 0 | K44: =SUM(K15:K16) -> 0 | M44: =SUM(M15:M16) -> 0 | O44: =SUM(O15:O16) -> 0 | P44: =SUM(C44:O44) -> 0 | Q44: Training
P45: =SUM(C46:O46) -> -13086.374 | Q45: Energy balance (Mon - Sun)
A46: Energy balance | C46: =SUM(C40-(C42+C44)) -> -1869.482 | E46: =SUM(E40-(E42+E44)) -> -1869.482 | G46: =SUM(G40-(G42+G44)) -> -1869.482 | I46: =SUM(I40-(I42+I44)) -> -1869.482 | K46: =SUM(K40-(K42+K44)) -> -1869.482 | M46: =SUM(M40-(M42+M44)) -> -1869.482 | O46: =SUM(O40-(O42+O44)) -> -1869.482 | P46: =SUM('Wk 5'!G46:O46)+SUM(C46:E46) -> -13086.374 | Q46: Energy balance (Wed - Tue)

Sheet Wk 7
A1: Week 7 | B1: THIS WEEKS GOALS: | F1: TO ACHIEVE THIS I NEED TO:
A3: Calorie limit - 1200
F11: Weekly Weigh In | G11: ='Wk 6'!G11 -> 111.7
B12: Monday | D12: Tuesday | F12: Wednesday | H12: Thursday | J12: Friday | L12: Saturday | N12: Sunday | P12: Notes
B13: =' MY STATS'!I5-2 -> 2012-02-13 | D13: =' MY STATS'!I5-1 -> 2012-02-14 | F13: =' MY STATS'!I5 -> 2012-02-15 | H13: =' MY STATS'!I5+1 -> 2012-02-16 | J13: =' MY STATS'!I5+2 -> 2012-02-17 | L13: =' MY STATS'!I5+3 -> 2012-02-18 | N13: =' MY STATS'!I5+4 -> 2012-02-19
B14: Notes: | D14: Notes: | F14: Notes: | H14: Notes: | J14: Notes: | L14: Notes: Super Saturday Session for Training! | N14: Notes:
A15: Training Session 1 | B15: insert training plans here | C15: calories burnt here | D15: insert training plans here | E15: calories burnt here | F15: insert training plans here | G15: calories burnt here | H15: insert training plans here | I15: calories burnt here | J15: insert training plans here | K15: calories burnt here | L15: insert training plans here | M15: calories burnt here | N15: insert training plans here | O15: calories burnt here
A16: Training Session 2 | B16: insert training plans here | C16: calories burnt here | D16: insert training plans here | E16: calories burnt here | F16: insert training plans here | G16: calories burnt here | H16: insert training plans here | I16: calories burnt here | J16: insert training plans here | K16: calories burnt here | L16: insert training plans here | M16: calories burnt here | N16: insert training plans here | O16: calories burnt here
A17: Water intake
A18: Breakfast
B27: sub-total | C27: =SUM(C18:C26) -> 0 | D27: sub-total | E27: =SUM(E18:E26) -> 0 | F27: sub-total | G27: =SUM(G18:G26) -> 0 | H27: sub-total | I27: =SUM(I18:I26) -> 0 | J27: sub-total | K27: =SUM(K18:K26) -> 0 | L27: sub-total | M27: =SUM(M18:M26) -> 0 | N27: sub-total | O27: =SUM(O18:O26) -> 0
A28: Lunch
B32: sub-total | C32: =SUM(C28:C31) -> 0 | D32: sub-total | E32: =SUM(E28:E31) -> 0 | F32: sub-total | G32: =SUM(G28:G31) -> 0 | H32: sub-total | I32: =SUM(I28:I31) -> 0 | J32: sub-total | K32: =SUM(K28:K31) -> 0 | L32: sub-total | M32: =SUM(M28:M31) -> 0 | N32: sub-total | O32: =SUM(O28:O31) -> 0
A33: Dinner
B36: sub-total | C36: =SUM(C33:C35) -> 0 | D36: sub-total | E36: =SUM(E33:E35) -> 0 | F36: sub-total | G36: =SUM(G33:G35) -> 0 | H36: sub-total | I36: =SUM(I33:I35) -> 0 | J36: sub-total | K36: =SUM(K33:K35) -> 0 | L36: sub-total | M36: =SUM(M33:M35) -> 0 | N36: sub-total | O36: =SUM(O33:O35) -> 0
A37: Snacks
P38: Weekly totals
B39: sub-total | C39: =SUM(C37:C38) -> 0 | D39: sub-total | E39: =SUM(E37:E38) -> 0 | F39: sub-total | G39: =SUM(G37:G38) -> 0 | H39: sub-total | I39: =SUM(I37:I38) -> 0 | J39: sub-total | K39: =SUM(K37:K38) -> 0 | L39: sub-total | M39: =SUM(M37:M38) -> 0 | N39: sub-total | O39: =SUM(O37:O38) -> 0 | P39: *7000 calories in deficit = 1kg weight loss (approximately)
A40: Total Calorie Intake | C40: =SUM(C27+C32+C36+C39) -> 0 | E40: =SUM(E27+E32+E36+E39) -> 0 | G40: =SUM(G27+G32+G36+G39) -> 0 | I40: =SUM(I27+I32+I36+I39) -> 0 | K40: =SUM(K27+K32+K36+K39) -> 0 | M40: =SUM(M27+M32+M36+M39) -> 0 | O40: =SUM(O27+O32+O36+O39) -> 0 | P40: =SUM(O40,M40,K40,I40,G40,E40,C40) -> 0 | Q40: Total Calorie Intake
A42: Basal Metabolic Rate (BMR) | C42: =' MY STATS'!H16 -> 1869.482 | E42: =' MY STATS'!H16 -> 1869.482 | G42: =' MY STATS'!I16 -> 1869.482 | I42: =' MY STATS'!I16 -> 1869.482 | K42: =' MY STATS'!I16 -> 1869.482 | M42: =' MY STATS'!I16 -> 1869.482 | O42: =' MY STATS'!I16 -> 1869.482 | P42: =SUM(C42:O42) -> 13086.374 | Q42: Basal Metabolic Rate (BMR)
A44: Training | C44: =SUM(C15:C16) -> 0 | E44: =SUM(E15:E16) -> 0 | G44: =SUM(G15:G16) -> 0 | I44: =SUM(I15:I16) -> 0 | K44: =SUM(K15:K16) -> 0 | M44: =SUM(M15:M16) -> 0 | O44: =SUM(O15:O16) -> 0 | P44: =SUM(C44:O44) -> 0 | Q44: Training
P45: =SUM(C46:O46) -> -13086.374 | Q45: Energy balance (Mon - Sun)
A46: Energy balance | C46: =SUM(C40-(C42+C44)) -> -1869.482 | E46: =SUM(E40-(E42+E44)) -> -1869.482 | G46: =SUM(G40-(G42+G44)) -> -1869.482 | I46: =SUM(I40-(I42+I44)) -> -1869.482 | K46: =SUM(K40-(K42+K44)) -> -1869.482 | M46: =SUM(M40-(M42+M44)) -> -1869.482 | O46: =SUM(O40-(O42+O44)) -> -1869.482 | P46: =SUM('Wk 6'!G46:O46)+SUM(C46:E46) -> -13086.374 | Q46: Energy balance (Wed - Tue)

Sheet Wk 8
A1: Week 8 | B1: THIS WEEKS GOALS: | F1: TO ACHIEVE THIS I NEED TO:
A3: Calorie limit - 1200
F11: Weekly Weigh In | G11: ='Wk 7'!G11 -> 111.7
B12: Monday | D12: Tuesday | F12: Wednesday | H12: Thursday | J12: Friday | L12: Saturday | N12: Sunday | P12: Notes
B13: =' MY STATS'!J5-2 -> 2012-02-20 | D13: =' MY STATS'!J5-1 -> 2012-02-21 | F13: =' MY STATS'!J5 -> 2012-02-22 | H13: =' MY STATS'!J5+1 -> 2012-02-23 | J13: =' MY STATS'!J5+2 -> 2012-02-24 | L13: =' MY STATS'!J5+3 -> 2012-02-25 | N13: =' MY STATS'!J5+4 -> 2012-02-26
B14: Notes: | D14: Notes: | F14: Notes: | H14: Notes: | J14: Notes: | L14: Notes: Super Saturday Session for Training! | N14: Notes:
A15: Training Session 1 | B15: insert training plans here | C15: calories burnt here | D15: insert training plans here | E15: calories burnt here | F15: insert training plans here | G15: calories burnt here | H15: insert training plans here | I15: calories burnt here | J15: insert training plans here | K15: calories burnt here | L15: insert training plans here | M15: calories burnt here | N15: insert training plans here | O15: calories burnt here
A16: Training Session 2 | B16: insert training plans here | C16: calories burnt here | D16: insert training plans here | E16: calories burnt here | F16: insert training plans here | G16: calories burnt here | H16: insert training plans here | I16: calories burnt here | J16: insert training plans here | K16: calories burnt here | L16: insert training plans here | M16: calories burnt here | N16: insert training plans here | O16: calories burnt here
A17: Water intake
A18: Breakfast
B27: sub-total | C27: =SUM(C18:C26) -> 0 | D27: sub-total | E27: =SUM(E18:E26) -> 0 | F27: sub-total | G27: =SUM(G18:G26) -> 0 | H27: sub-total | I27: =SUM(I18:I26) -> 0 | J27: sub-total | K27: =SUM(K18:K26) -> 0 | L27: sub-total | M27: =SUM(M18:M26) -> 0 | N27: sub-total | O27: =SUM(O18:O26) -> 0
A28: Lunch
B32: sub-total | C32: =SUM(C28:C31) -> 0 | D32: sub-total | E32: =SUM(E28:E31) -> 0 | F32: sub-total | G32: =SUM(G28:G31) -> 0 | H32: sub-total | I32: =SUM(I28:I31) -> 0 | J32: sub-total | K32: =SUM(K28:K31) -> 0 | L32: sub-total | M32: =SUM(M28:M31) -> 0 | N32: sub-total | O32: =SUM(O28:O31) -> 0
A33: Dinner
B36: sub-total | C36: =SUM(C33:C35) -> 0 | D36: sub-total | E36: =SUM(E33:E35) -> 0 | F36: sub-total | G36: =SUM(G33:G35) -> 0 | H36: sub-total | I36: =SUM(I33:I35) -> 0 | J36: sub-total | K36: =SUM(K33:K35) -> 0 | L36: sub-total | M36: =SUM(M33:M35) -> 0 | N36: sub-total | O36: =SUM(O33:O35) -> 0
A37: Snacks
P38: Weekly totals
B39: sub-total | C39: =SUM(C37:C38) -> 0 | D39: sub-total | E39: =SUM(E37:E38) -> 0 | F39: sub-total | G39: =SUM(G37:G38) -> 0 | H39: sub-total | I39: =SUM(I37:I38) -> 0 | J39: sub-total | K39: =SUM(K37:K38) -> 0 | L39: sub-total | M39: =SUM(M37:M38) -> 0 | N39: sub-total | O39: =SUM(O37:O38) -> 0 | P39: *7000 calories in deficit = 1kg weight loss (approximately)
A40: Total Calorie Intake | C40: =SUM(C27+C32+C36+C39) -> 0 | E40: =SUM(E27+E32+E36+E39) -> 0 | G40: =SUM(G27+G32+G36+G39) -> 0 | I40: =SUM(I27+I32+I36+I39) -> 0 | K40: =SUM(K27+K32+K36+K39) -> 0 | M40: =SUM(M27+M32+M36+M39) -> 0 | O40: =SUM(O27+O32+O36+O39) -> 0 | P40: =SUM(O40,M40,K40,I40,G40,E40,C40) -> 0 | Q40: Total Calorie Intake
A42: Basal Metabolic Rate (BMR) | C42: =' MY STATS'!I16 -> 1869.482 | E42: =' MY STATS'!I16 -> 1869.482 | G42: =' MY STATS'!J16 -> 1869.482 | I42: =' MY STATS'!J16 -> 1869.482 | K42: =' MY STATS'!J16 -> 1869.482 | M42: =' MY STATS'!J16 -> 1869.482 | O42: =' MY STATS'!J16 -> 1869.482 | P42: =SUM(C42:O42) -> 13086.374 | Q42: Basal Metabolic Rate (BMR)
A44: Training | C44: =SUM(C15:C16) -> 0 | E44: =SUM(E15:E16) -> 0 | G44: =SUM(G15:G16) -> 0 | I44: =SUM(I15:I16) -> 0 | K44: =SUM(K15:K16) -> 0 | M44: =SUM(M15:M16) -> 0 | O44: =SUM(O15:O16) -> 0 | P44: =SUM(C44:O44) -> 0 | Q44: Training
P45: =SUM(C46:O46) -> -13086.374 | Q45: Energy balance (Mon - Sun)
A46: Energy balance | C46: =SUM(C40-(C42+C44)) -> -1869.482 | E46: =SUM(E40-(E42+E44)) -> -1869.482 | G46: =SUM(G40-(G42+G44)) -> -1869.482 | I46: =SUM(I40-(I42+I44)) -> -1869.482 | K46: =SUM(K40-(K42+K44)) -> -1869.482 | M46: =SUM(M40-(M42+M44)) -> -1869.482 | O46: =SUM(O40-(O42+O44)) -> -1869.482 | P46: =SUM('Wk 7'!G46:O46)+SUM(C46:E46) -> -13086.374 | Q46: Energy balance (Wed - Tue)

Sheet Wk 9
A1: Week 9 | B1: THIS WEEKS GOALS: | F1: TO ACHIEVE THIS I NEED TO:
A3: Calorie limit - 1200
F11: Weekly Weigh In | G11: ='Wk 8'!G11 -> 111.7
B12: Monday | D12: Tuesday | F12: Wednesday | H12: Thursday | J12: Friday | L12: Saturday | N12: Sunday | P12: Notes
B13: =' MY STATS'!K5-2 -> 2012-02-27 | D13: =' MY STATS'!K5-1 -> 2012-02-28 | F13: =' MY STATS'!K5 -> 2012-02-29 | H13: =' MY STATS'!K5+1 -> 2012-03-01 | J13: =' MY STATS'!K5+2 -> 2012-03-02 | L13: =' MY STATS'!K5+3 -> 2012-03-03 | N13: =' MY STATS'!K5+4 -> 2012-03-04
B14: Notes: | D14: Notes: | F14: Notes: | H14: Notes: | J14: Notes: | L14: Notes: Super Saturday Session for Training! | N14: Notes:
A15: Training Session 1 | B15: insert training plans here | C15: calories burnt here | D15: insert training plans here | E15: calories burnt here | F15: insert training plans here | G15: calories burnt here | H15: insert training plans here | I15: calories burnt here | J15: insert training plans here | K15: calories burnt here | L15: insert training plans here | M15: calories burnt here | N15: insert training plans here | O15: calories burnt here
A16: Training Session 2 | B16: insert training plans here | C16: calories burnt here | D16: insert training plans here | E16: calories burnt here | F16: insert training plans here | G16: calories burnt here | H16: insert training plans here | I16: calories burnt here | J16: insert training plans here | K16: calories burnt here | L16: insert training plans here | M16: calories burnt here | N16: insert training plans here | O16: calories burnt here
A17: Water intake
A18: Breakfast
B27: sub-total | C27: =SUM(C18:C26) -> 0 | D27: sub-total | E27: =SUM(E18:E26) -> 0 | F27: sub-total | G27: =SUM(G18:G26) -> 0 | H27: sub-total | I27: =SUM(I18:I26) -> 0 | J27: sub-total | K27: =SUM(K18:K26) -> 0 | L27: sub-total | M27: =SUM(M18:M26) -> 0 | N27: sub-total | O27: =SUM(O18:O26) -> 0
A28: Lunch
B32: sub-total | C32: =SUM(C28:C31) -> 0 | D32: sub-total | E32: =SUM(E28:E31) -> 0 | F32: sub-total | G32: =SUM(G28:G31) -> 0 | H32: sub-total | I32: =SUM(I28:I31) -> 0 | J32: sub-total | K32: =SUM(K28:K31) -> 0 | L32: sub-total | M32: =SUM(M28:M31) -> 0 | N32: sub-total | O32: =SUM(O28:O31) -> 0
A33: Dinner
B36: sub-total | C36: =SUM(C33:C35) -> 0 | D36: sub-total | E36: =SUM(E33:E35) -> 0 | F36: sub-total | G36: =SUM(G33:G35) -> 0 | H36: sub-total | I36: =SUM(I33:I35) -> 0 | J36: sub-total | K36: =SUM(K33:K35) -> 0 | L36: sub-total | M36: =SUM(M33:M35) -> 0 | N36: sub-total | O36: =SUM(O33:O35) -> 0
A37: Snacks
P38: Weekly totals
B39: sub-total | C39: =SUM(C37:C38) -> 0 | D39: sub-total | E39: =SUM(E37:E38) -> 0 | F39: sub-total | G39: =SUM(G37:G38) -> 0 | H39: sub-total | I39: =SUM(I37:I38) -> 0 | J39: sub-total | K39: =SUM(K37:K38) -> 0 | L39: sub-total | M39: =SUM(M37:M38) -> 0 | N39: sub-total | O39: =SUM(O37:O38) -> 0 | P39: *7000 calories in deficit = 1kg weight loss (approximately)
A40: Total Calorie Intake | C40: =SUM(C27+C32+C36+C39) -> 0 | E40: =SUM(E27+E32+E36+E39) -> 0 | G40: =SUM(G27+G32+G36+G39) -> 0 | I40: =SUM(I27+I32+I36+I39) -> 0 | K40: =SUM(K27+K32+K36+K39) -> 0 | M40: =SUM(M27+M32+M36+M39) -> 0 | O40: =SUM(O27+O32+O36+O39) -> 0 | P40: =SUM(O40,M40,K40,I40,G40,E40,C40) -> 0 | Q40: Total Calorie Intake
A42: Basal Metabolic Rate (BMR) | C42: =' MY STATS'!J16 -> 1869.482 | E42: =' MY STATS'!J16 -> 1869.482 | G42: =' MY STATS'!K16 -> 1869.482 | I42: =' MY STATS'!K16 -> 1869.482 | K42: =' MY STATS'!K16 -> 1869.482 | M42: =' MY STATS'!K16 -> 1869.482 | O42: =' MY STATS'!K16 -> 1869.482 | P42: =SUM(C42:O42) -> 13086.374 | Q42: Basal Metabolic Rate (BMR)
A44: Training | C44: =SUM(C15:C16) -> 0 | E44: =SUM(E15:E16) -> 0 | G44: =SUM(G15:G16) -> 0 | I44: =SUM(I15:I16) -> 0 | K44: =SUM(K15:K16) -> 0 | M44: =SUM(M15:M16) -> 0 | O44: =SUM(O15:O16) -> 0 | P44: =SUM(C44:O44) -> 0 | Q44: Training
P45: =SUM(C46:O46) -> -13086.374 | Q45: Energy balance (Mon - Sun)
A46: Energy balance | C46: =SUM(C40-(C42+C44)) -> -1869.482 | E46: =SUM(E40-(E42+E44)) -> -1869.482 | G46: =SUM(G40-(G42+G44)) -> -1869.482 | I46: =SUM(I40-(I42+I44)) -> -1869.482 | K46: =SUM(K40-(K42+K44)) -> -1869.482 | M46: =SUM(M40-(M42+M44)) -> -1869.482 | O46: =SUM(O40-(O42+O44)) -> -1869.482 | P46: =SUM('Wk 8'!G46:O46)+SUM(C46:E46) -> -13086.374 | Q46: Energy balance (Wed - Tue)

Sheet Wk 10
A1: Week 10 | B1: THIS WEEKS GOALS: | F1: TO ACHIEVE THIS I NEED TO:
A3: Calorie limit - 1200
F11: Weekly Weigh In | G11: ='Wk 9'!G11 -> 111.7
B12: Monday | D12: Tuesday | F12: Wednesday | H12: Thursday | J12: Friday | L12: Saturday | N12: Sunday | P12: Notes
B13: =' MY STATS'!L5-2 -> 2012-03-05 | D13: =' MY STATS'!L5-1 -> 2012-03-06 | F13: =' MY STATS'!L5 -> 2012-03-07 | H13: =' MY STATS'!L5+1 -> 2012-03-08 | J13: =' MY STATS'!L5+2 -> 2012-03-09 | L13: =' MY STATS'!L5+3 -> 2012-03-10 | N13: =' MY STATS'!L5+4 -> 2012-03-11
B14: Notes: | D14: Notes: | F14: Notes: | H14: Notes: | J14: Notes: | L14: Notes: Super Saturday Session for Training! | N14: Notes:
A15: Training Session 1 | B15: insert training plans here | C15: calories burnt here | D15: insert training plans here | E15: calories burnt here | F15: insert training plans here | G15: calories burnt here | H15: insert training plans here | I15: calories burnt here | J15: insert training plans here | K15: calories burnt here | L15: insert training plans here | M15: calories burnt here | N15: insert training plans here | O15: calories burnt here
A16: Training Session 2 | B16: insert training plans here | C16: calories burnt here | D16: insert training plans here | E16: calories burnt here | F16: insert training plans here | G16: calories burnt here | H16: insert training plans here | I16: calories burnt here | J16: insert training plans here | K16: calories burnt here | L16: insert training plans here | M16: calories burnt here | N16: insert training plans here | O16: calories burnt here
A17: Water intake
A18: Breakfast
B27: sub-total | C27: =SUM(C18:C26) -> 0 | D27: sub-total | E27: =SUM(E18:E26) -> 0 | F27: sub-total | G27: =SUM(G18:G26) -> 0 | H27: sub-total | I27: =SUM(I18:I26) -> 0 | J27: sub-total | K27: =SUM(K18:K26) -> 0 | L27: sub-total | M27: =SUM(M18:M26) -> 0 | N27: sub-total | O27: =SUM(O18:O26) -> 0
A28: Lunch
B32: sub-total | C32: =SUM(C28:C31) -> 0 | D32: sub-total | E32: =SUM(E28:E31) -> 0 | F32: sub-total | G32: =SUM(G28:G31) -> 0 | H32: sub-total | I32: =SUM(I28:I31) -> 0 | J32: sub-total | K32: =SUM(K28:K31) -> 0 | L32: sub-total | M32: =SUM(M28:M31) -> 0 | N32: sub-total | O32: =SUM(O28:O31) -> 0
A33: Dinner
B36: sub-total | C36: =SUM(C33:C35) -> 0 | D36: sub-total | E36: =SUM(E33:E35) -> 0 | F36: sub-total | G36: =SUM(G33:G35) -> 0 | H36: sub-total | I36: =SUM(I33:I35) -> 0 | J36: sub-total | K36: =SUM(K33:K35) -> 0 | L36: sub-total | M36: =SUM(M33:M35) -> 0 | N36: sub-total | O36: =SUM(O33:O35) -> 0
A37: Snacks
P38: Weekly totals
B39: sub-total | C39: =SUM(C37:C38) -> 0 | D39: sub-total | E39: =SUM(E37:E38) -> 0 | F39: sub-total | G39: =SUM(G37:G38) -> 0 | H39: sub-total | I39: =SUM(I37:I38) -> 0 | J39: sub-total | K39: =SUM(K37:K38) -> 0 | L39: sub-total | M39: =SUM(M37:M38) -> 0 | N39: sub-total | O39: =SUM(O37:O38) -> 0 | P39: *7000 calories in deficit = 1kg weight loss (approximately)
A40: Total Calorie Intake | C40: =SUM(C27+C32+C36+C39) -> 0 | E40: =SUM(E27+E32+E36+E39) -> 0 | G40: =SUM(G27+G32+G36+G39) -> 0 | I40: =SUM(I27+I32+I36+I39) -> 0 | K40: =SUM(K27+K32+K36+K39) -> 0 | M40: =SUM(M27+M32+M36+M39) -> 0 | O40: =SUM(O27+O32+O36+O39) -> 0 | P40: =SUM(O40,M40,K40,I40,G40,E40,C40) -> 0 | Q40: Total Calorie Intake
A42: Basal Metabolic Rate (BMR) | C42: =' MY STATS'!K16 -> 1869.482 | E42: =' MY STATS'!K16 -> 1869.482 | G42: =' MY STATS'!L16 -> 1869.482 | I42: =' MY STATS'!L16 -> 1869.482 | K42: =' MY STATS'!L16 -> 1869.482 | M42: =' MY STATS'!L16 -> 1869.482 | O42: =' MY STATS'!L16 -> 1869.482 | P42: =SUM(C42:O42) -> 13086.374 | Q42: Basal Metabolic Rate (BMR)
A44: Training | C44: =SUM(C15:C16) -> 0 | E44: =SUM(E15:E16) -> 0 | G44: =SUM(G15:G16) -> 0 | I44: =SUM(I15:I16) -> 0 | K44: =SUM(K15:K16) -> 0 | M44: =SUM(M15:M16) -> 0 | O44: =SUM(O15:O16) -> 0 | P44: =SUM(C44:O44) -> 0 | Q44: Training
P45: =SUM(C46:O46) -> -13086.374 | Q45: Energy balance (Mon - Sun)
A46: Energy balance | C46: =SUM(C40-(C42+C44)) -> -1869.482 | E46: =SUM(E40-(E42+E44)) -> -1869.482 | G46: =SUM(G40-(G42+G44)) -> -1869.482 | I46: =SUM(I40-(I42+I44)) -> -1869.482 | K46: =SUM(K40-(K42+K44)) -> -1869.482 | M46: =SUM(M40-(M42+M44)) -> -1869.482 | O46: =SUM(O40-(O42+O44)) -> -1869.482 | P46: =SUM('Wk 9'!G46:O46)+SUM(C46:E46) -> -13086.374 | Q46: Energy balance (Wed - Tue)

Sheet Wk 11
A1: Week 11 | B1: THIS WEEKS GOALS: | F1: TO ACHIEVE THIS I NEED TO:
A3: Calorie limit - 1200
F11: Weekly Weigh In | G11: ='Wk 10'!G11 -> 111.7
B12: Monday | D12: Tuesday | F12: Wednesday | H12: Thursday | J12: Friday | L12: Saturday | N12: Sunday | P12: Notes
B13: =' MY STATS'!M5-2 -> 2012-03-12 | D13: =' MY STATS'!M5-1 -> 2012-03-13 | F13: =' MY STATS'!M5 -> 2012-03-14 | H13: =' MY STATS'!M5+1 -> 2012-03-15 | J13: =' MY STATS'!M5+2 -> 2012-03-16 | L13: =' MY STATS'!M5+3 -> 2012-03-17 | N13: =' MY STATS'!M5+4 -> 2012-03-18
B14: Notes: | D14: Notes: | F14: Notes: | H14: Notes: | J14: Notes: | L14: Notes: Super Saturday Session for Training! | N14: Notes:
A15: Training Session 1 | B15: insert training plans here | C15: calories burnt here | D15: insert training plans here | E15: calories burnt here | F15: insert training plans here | G15: calories burnt here | H15: insert training plans here | I15: calories burnt here | J15: insert training plans here | K15: calories burnt here | L15: insert training plans here | M15: calories burnt here | N15: insert training plans here | O15: calories burnt here
A16: Training Session 2 | B16: insert training plans here | C16: calories burnt here | D16: insert training plans here | E16: calories burnt here | F16: insert training plans here | G16: calories burnt here | H16: insert training plans here | I16: calories burnt here | J16: insert training plans here | K16: calories burnt here | L16: insert training plans here | M16: calories burnt here | N16: insert training plans here | O16: calories burnt here
A17: Water intake
A18: Breakfast
B27: sub-total | C27: =SUM(C18:C26) -> 0 | D27: sub-total | E27: =SUM(E18:E26) -> 0 | F27: sub-total | G27: =SUM(G18:G26) -> 0 | H27: sub-total | I27: =SUM(I18:I26) -> 0 | J27: sub-total | K27: =SUM(K18:K26) -> 0 | L27: sub-total | M27: =SUM(M18:M26) -> 0 | N27: sub-total | O27: =SUM(O18:O26) -> 0
A28: Lunch
B32: sub-total | C32: =SUM(C28:C31) -> 0 | D32: sub-total | E32: =SUM(E28:E31) -> 0 | F32: sub-total | G32: =SUM(G28:G31) -> 0 | H32: sub-total | I32: =SUM(I28:I31) -> 0 | J32: sub-total | K32: =SUM(K28:K31) -> 0 | L32: sub-total | M32: =SUM(M28:M31) -> 0 | N32: sub-total | O32: =SUM(O28:O31) -> 0
A33: Dinner
B36: sub-total | C36: =SUM(C33:C35) -> 0 | D36: sub-total | E36: =SUM(E33:E35) -> 0 | F36: sub-total | G36: =SUM(G33:G35) -> 0 | H36: sub-total | I36: =SUM(I33:I35) -> 0 | J36: sub-total | K36: =SUM(K33:K35) -> 0 | L36: sub-total | M36: =SUM(M33:M35) -> 0 | N36: sub-total | O36: =SUM(O33:O35) -> 0
A37: Snacks
P38: Weekly totals
B39: sub-total | C39: =SUM(C37:C38) -> 0 | D39: sub-total | E39: =SUM(E37:E38) -> 0 | F39: sub-total | G39: =SUM(G37:G38) -> 0 | H39: sub-total | I39: =SUM(I37:I38) -> 0 | J39: sub-total | K39: =SUM(K37:K38) -> 0 | L39: sub-total | M39: =SUM(M37:M38) -> 0 | N39: sub-total | O39: =SUM(O37:O38) -> 0 | P39: *7000 calories in deficit = 1kg weight loss (approximately)
A40: Total Calorie Intake | C40: =SUM(C27+C32+C36+C39) -> 0 | E40: =SUM(E27+E32+E36+E39) -> 0 | G40: =SUM(G27+G32+G36+G39) -> 0 | I40: =SUM(I27+I32+I36+I39) -> 0 | K40: =SUM(K27+K32+K36+K39) -> 0 | M40: =SUM(M27+M32+M36+M39) -> 0 | O40: =SUM(O27+O32+O36+O39) -> 0 | P40: =SUM(O40,M40,K40,I40,G40,E40,C40) -> 0 | Q40: Total Calorie Intake
A42: Basal Metabolic Rate (BMR) | C42: =' MY STATS'!L16 -> 1869.482 | E42: =' MY STATS'!L16 -> 1869.482 | G42: =' MY STATS'!M16 -> 1869.482 | I42: =' MY STATS'!M16 -> 1869.482 | K42: =' MY STATS'!M16 -> 1869.482 | M42: =' MY STATS'!M16 -> 1869.482 | O42: =' MY STATS'!M16 -> 1869.482 | P42: =SUM(C42:O42) -> 13086.374 | Q42: Basal Metabolic Rate (BMR)
A44: Training | C44: =SUM(C15:C16) -> 0 | E44: =SUM(E15:E16) -> 0 | G44: =SUM(G15:G16) -> 0 | I44: =SUM(I15:I16) -> 0 | K44: =SUM(K15:K16) -> 0 | M44: =SUM(M15:M16) -> 0 | O44: =SUM(O15:O16) -> 0 | P44: =SUM(C44:O44) -> 0 | Q44: Training
P45: =SUM(C46:O46) -> -13086.374 | Q45: Energy balance (Mon - Sun)
A46: Energy balance | C46: =SUM(C40-(C42+C44)) -> -1869.482 | E46: =SUM(E40-(E42+E44)) -> -1869.482 | G46: =SUM(G40-(G42+G44)) -> -1869.482 | I46: =SUM(I40-(I42+I44)) -> -1869.482 | K46: =SUM(K40-(K42+K44)) -> -1869.482 | M46: =SUM(M40-(M42+M44)) -> -1869.482 | O46: =SUM(O40-(O42+O44)) -> -1869.482 | P46: =SUM('Wk 10'!G46:O46)+SUM(C46:E46) -> -13086.374 | Q46: Energy balance (Wed - Tue)

Sheet Wk 12
A1: Week 12 | B1: THIS WEEKS GOALS: | F1: TO ACHIEVE THIS I NEED TO:
A3: Calorie limit - 1200
F11: Weekly Weigh In | G11: ='Wk 11'!G11 -> 111.7
B12: Monday | D12: Tuesday | F12: Wednesday | H12: Thursday | J12: Friday | L12: Saturday | N12: Sunday | P12: Notes
B13: =' MY STATS'!N5-2 -> 2012-03-19 | D13: =' MY STATS'!N5-1 -> 2012-03-20 | F13: =' MY STATS'!N5 -> 2012-03-21 | H13: =' MY STATS'!N5+1 -> 2012-03-22 | J13: =' MY STATS'!N5+2 -> 2012-03-23 | L13: =' MY STATS'!N5+3 -> 2012-03-24 | N13: =' MY STATS'!N5+4 -> 2012-03-25
B14: Notes: | D14: Notes: | F14: Notes: | H14: Notes: | J14: Notes: | L14: Notes: Super Saturday Session for Training! | N14: Notes:
A15: Training Session 1 | B15: insert training plans here | C15: calories burnt here | D15: insert training plans here | E15: calories burnt here | F15: insert training plans here | G15: calories burnt here | H15: insert training plans here | I15: calories burnt here | J15: insert training plans here | K15: calories burnt here | L15: insert training plans here | M15: calories burnt here | N15: insert training plans here | O15: calories burnt here
A16: Training Session 2 | B16: insert training plans here | C16: calories burnt here | D16: insert training plans here | E16: calories burnt here | F16: insert training plans here | G16: calories burnt here | H16: insert training plans here | I16: calories burnt here | J16: insert training plans here | K16: calories burnt here | L16: insert training plans here | M16: calories burnt here | N16: insert training plans here | O16: calories burnt here
A17: Water intake
A18: Breakfast
B27: sub-total | C27: =SUM(C18:C26) -> 0 | D27: sub-total | E27: =SUM(E18:E26) -> 0 | F27: sub-total | G27: =SUM(G18:G26) -> 0 | H27: sub-total | I27: =SUM(I18:I26) -> 0 | J27: sub-total | K27: =SUM(K18:K26) -> 0 | L27: sub-total | M27: =SUM(M18:M26) -> 0 | N27: sub-total | O27: =SUM(O18:O26) -> 0
A28: Lunch
B32: sub-total | C32: =SUM(C28:C31) -> 0 | D32: sub-total | E32: =SUM(E28:E31) -> 0 | F32: sub-total | G32: =SUM(G28:G31) -> 0 | H32: sub-total | I32: =SUM(I28:I31) -> 0 | J32: sub-total | K32: =SUM(K28:K31) -> 0 | L32: sub-total | M32: =SUM(M28:M31) -> 0 | N32: sub-total | O32: =SUM(O28:O31) -> 0
A33: Dinner
B36: sub-total | C36: =SUM(C33:C35) -> 0 | D36: sub-total | E36: =SUM(E33:E35) -> 0 | F36: sub-total | G36: =SUM(G33:G35) -> 0 | H36: sub-total | I36: =SUM(I33:I35) -> 0 | J36: sub-total | K36: =SUM(K33:K35) -> 0 | L36: sub-total | M36: =SUM(M33:M35) -> 0 | N36: sub-total | O36: =SUM(O33:O35) -> 0
A37: Snacks
P38: Weekly totals
B39: sub-total | C39: =SUM(C37:C38) -> 0 | D39: sub-total | E39: =SUM(E37:E38) -> 0 | F39: sub-total | G39: =SUM(G37:G38) -> 0 | H39: sub-total | I39: =SUM(I37:I38) -> 0 | J39: sub-total | K39: =SUM(K37:K38) -> 0 | L39: sub-total | M39: =SUM(M37:M38) -> 0 | N39: sub-total | O39: =SUM(O37:O38) -> 0 | P39: *7000 calories in deficit = 1kg weight loss (approximately)
A40: Total Calorie Intake | C40: =SUM(C27+C32+C36+C39) -> 0 | E40: =SUM(E27+E32+E36+E39) -> 0 | G40: =SUM(G27+G32+G36+G39) -> 0 | I40: =SUM(I27+I32+I36+I39) -> 0 | K40: =SUM(K27+K32+K36+K39) -> 0 | M40: =SUM(M27+M32+M36+M39) -> 0 | O40: =SUM(O27+O32+O36+O39) -> 0 | P40: =SUM(O40,M40,K40,I40,G40,E40,C40) -> 0 | Q40: Total Calorie Intake
A42: Basal Metabolic Rate (BMR) | C42: =' MY STATS'!M16 -> 1869.482 | E42: =' MY STATS'!M16 -> 1869.482 | G42: =' MY STATS'!N16 -> 1869.482 | I42: =' MY STATS'!N16 -> 1869.482 | K42: =' MY STATS'!N16 -> 1869.482 | M42: =' MY STATS'!N16 -> 1869.482 | O42: =' MY STATS'!N16 -> 1869.482 | P42: =SUM(C42:O42) -> 13086.374 | Q42: Basal Metabolic Rate (BMR)
A44: Training | C44: =SUM(C15:C16) -> 0 | E44: =SUM(E15:E16) -> 0 | G44: =SUM(G15:G16) -> 0 | I44: =SUM(I15:I16) -> 0 | K44: =SUM(K15:K16) -> 0 | M44: =SUM(M15:M16) -> 0 | O44: =SUM(O15:O16) -> 0 | P44: =SUM(C44:O44) -> 0 | Q44: Training
P45: =SUM(C46:O46) -> -13086.374 | Q45: Energy balance (Mon - Sun)
A46: Energy balance | C46: =SUM(C40-(C42+C44)) -> -1869.482 | E46: =SUM(E40-(E42+E44)) -> -1869.482 | G46: =SUM(G40-(G42+G44)) -> -1869.482 | I46: =SUM(I40-(I42+I44)) -> -1869.482 | K46: =SUM(K40-(K42+K44)) -> -1869.482 | M46: =SUM(M40-(M42+M44)) -> -1869.482 | O46: =SUM(O40-(O42+O44)) -> -1869.482 | P46: =SUM('Wk 11'!G46:O46)+SUM(C46:E46) -> -13086.374 | Q46: Energy balance (Wed - Tue)

Sheet Week 1 (hidden)
A1: Week 1 | B1: Calorie limit | C1: 1200 | D1: =C1*7 -> 8400
B3: Monday | D3: Tuesday | F3: Wednesday | H3: Thursday | J3: Friday | L3: Saturday | N3: Sunday | Q3: Notes
B4: Notes: at home | D4: Notes: 8am RBH, 12pm PAH, 3pm home ** Pack lunch & snacks ** | F4: Notes: at home for meals 3.30 - 5pm tutoring | H4: Notes: at home | J4: Notes: 8am RBH, 10am PAH Gym @ 3pm then home | L4: Notes: at home | N4: Notes: at home
A5: breakfast | B5: =#REF! ->  | C5: =#REF! ->  | D5: =#REF! ->  | E5: =#REF! ->  | F5: =#REF! ->  | G5: =#REF! ->  | H5: =#REF! ->  | I5: =#REF! ->  | J5: =#REF! ->  | K5: =#REF! ->  | L5: for me yoghurt | M5: 40 | N5: meds, celery | O5: 0
B6: meds, celery | C6: 0 | D6: meds, celery | E6: 0 | F6: =#REF! ->  | G6: =#REF! ->  | H6: meds, celery | I6: 0 | J6: meds, celery | K6: 0 | L6: museli | M6: 40 | N6: green tea x2 | O6: 0
D7: skinny cap (starbucks tall) | E7: 65 | F7: meds, celery | G7: 0 | J7: =#REF! ->  | K7: =#REF! ->  | L7: meds, celery | M7: 0 | N7: baked beans + toast | O7: 300
J8: sugar 1 teaspoon | K8: 20
B10: sub-total | C10: =SUM(C5:C6) ->  | D10: sub-total | E10: =SUM(E5:E8) ->  | F10: sub-total | G10: =SUM(G5:G8) ->  | H10: sub-total | I10: =SUM(I5:I8) ->  | J10: sub-total | K10: =SUM(K5:K9) ->  | L10: sub-total | M10: =SUM(M5:M8) -> 80 | N10: sub-total | O10: =SUM(O5:O8) -> 300
A11: lunch | B11: =#REF! ->  | C11: =#REF! ->  | D11: =#REF! ->  | E11: =#REF! ->  | F11: =#REF! ->  | G11: =#REF! ->  | H11: =#REF! ->  | I11: =#REF! ->  | J11: for me yoghurt | K11: 80 | N11: =#REF! ->  | O11: =#REF! -> 
F12: =#REF! ->  | G12: =#REF! ->  | H12: =#REF! ->  | I12: =#REF! -> 
F13: celery x 2 | G13: 0
B15: sub-total | C15: =SUM(C11:C14) ->  | D15: sub-total | E15: =SUM(E11:E14) ->  | F15: sub-total | G15: =SUM(G11:G14) ->  | H15: sub-total | I15: =SUM(I11:I14) ->  | J15: sub-total | K15: =SUM(K11:K14) -> 80 | L15: sub-total | M15: =SUM(M11:M14) -> 0 | N15: sub-total | O15: =SUM(O11:O14) -> 
A16: dinner | B16: 1.5 cups pumpkin soup | C16: 218 | D16: cauliflower soup | E16: 123 | F16: =#REF! ->  | G16: =#REF! ->  | H16: 1 cup pumpkin soup | I16: 145 | J16: steak | K16: 274 | L16: sushi | M16: 700 | N16: salmon | O16: 328
H17: =#REF! ->  | I17: =#REF! ->  | J17: carrots, broccoli | K17: 60 | N17: strem fresh veg | O17: 55
J18: sweet potato chips | K18: 200
B19: sub-total | C19: =SUM(C16:C18) -> 218 | D19: sub-total | E19: =SUM(E16:E18) -> 123 | F19: sub-total | G19: =SUM(G16:G18) ->  | H19: sub-total | I19: =SUM(I16:I18) ->  | J19: sub-total | K19: =SUM(K16:K18) -> 534 | L19: sub-total | M19: =SUM(M16:M18) -> 700 | N19: sub-total | O19: =SUM(O16:O18) -> 383
A20: snacks | B20: forme yoghurt | C20: 40 | D20: For me youghurt | E20: 80 | F20: rice cracker + CC + tomato | G20: 80 | L20: carmans museli | M20: 170
B21: rice crackers 7 | C21: 50
B22: sub-total | C22: =SUM(C20:C21) -> 90 | D22: sub-total | E22: =SUM(E20:E21) -> 80 | F22: sub-total | G22: =SUM(G20:G21) -> 80 | H22: sub-total | I22: =SUM(I20:I21) -> 0 | J22: sub-total | K22: =SUM(K20:K21) -> 0 | L22: sub-total | M22: =SUM(M20:M21) -> 170 | N22: sub-total | O22: =SUM(O20:O21) -> 0
A23: Total | C23: =SUM(C10+C15+C19+C22) ->  | E23: =SUM(E10+E15+E19+E22) ->  | G23: =SUM(G10+G15+G19+G22) ->  | I23: =SUM(I10+I15+I19+I22) ->  | K23: =SUM(K10+K15+K19+K22) ->  | M23: =SUM(M10+M15+M19+M22) -> 950 | O23: =SUM(O10+O15+O19+O22) ->  | Q23: weekly total | R23: =SUM(C23:O23) -> 
C25: =C23-$C$1 ->  | E25: =E23-$C$1 ->  | G25: =G23-$C$1 ->  | I25: =I23-$C$1 ->  | K25: =K23-$C$1 ->  | M25: =M23-$C$1 -> -250 | O25: =O23-$C$1 ->  | Q25: left over | R25: =R23-D1 -> 
A27: Exercise | B27: 4.77km in 55 mins | C27: 400 | E27: 260 | F27: nil | G27: 0 | J27: pushup 1km etc | L27: sick | Q27: avg cal / day | R27: =R23/7 -> 
B29: Energy balance | C29: =C23-C27 ->  | E29: =E23-E27 ->  | G29: =G23-G27 ->  | I29: =I23-I27 ->  | K29: =K23-K27 ->  | M29: =M23-M27 -> 950 | O29: =O23-O27 -> 
B31: basal metabolic rate | C31: 1806 | E31: 1806 | G31: 1806
B33: balance for day | C33: =C23-C31-C27 ->  | E33: =E23-E31-E27 ->  | G33: =G23-G31-G27 -> 
A35: every step you take, every change you make on the 12WBT takes you in the right direction away from the person you were in that before photo :D

Sheet week 2 (hidden)
A1: Week 1 | B1: Calorie limit | C1: 1200 | D1: =C1*7 -> 8400
B3: Monday 28 June | D3: Tuesday 29 June | F3: Wednesday 30 June | H3: Thursday 1 July | J3: Friday 2 July | L3: Saturday 3 July | N3: Sunday 4 July | Q3: Notes
B4: Notes: at home | D4: Notes: 8am RBH, 12pm PAH, 3pm home ** Pack lunch & snacks ** | F4: Notes: at home for meals 3.30 - 5pm tutoring | H4: Notes: at home | J4: Notes: 8am RBH, 10am PAH Gym @ 3pm then home | L4: Notes: at home | N4: Notes: at home
A5: breakfast | B5: =#REF! ->  | C5: =#REF! ->  | D5: =#REF! ->  | E5: =#REF! ->  | F5: =#REF! ->  | G5: =#REF! ->  | H5: =#REF! ->  | I5: =#REF! ->  | J5: =#REF! ->  | K5: =#REF! ->  | L5: =#REF! ->  | M5: =#REF! ->  | N5: rye, tuna, cottage cheese, tomato | O5: 267
B6: meds, celery | C6: 0 | D6: meds, celery | E6: 0 | H6: meds, celery | I6: 0 | J6: meds, celery | K6: 0 | L6: meds, celery | M6: 0 | N6: meds, celery | O6: 0
B7: skinny cap | C7: 65 | F7: meds, celery | G7: 0 | H7: skin cap | I7: 65 | L7: =#REF! ->  | M7: =#REF! -> 
D8: museli round | E8: 170
B10: sub-total | C10: =SUM(C5:C6) ->  | D10: sub-total | E10: =SUM(E5:E8) ->  | F10: sub-total | G10: =SUM(G5:G8) ->  | H10: sub-total | I10: =SUM(I5:I8) ->  | J10: sub-total | K10: =SUM(K5:K9) ->  | L10: sub-total | M10: =SUM(M5:M8) ->  | N10: sub-total | O10: =SUM(O5:O8) -> 267
A11: lunch | D11: beef and rice | E11: 300 | F11: carmanns museli round | G11: 170 | H11: wrap with tuna & salad | I11: 300 | J11: japanese | K11: 450 | L11: treat meal | M11: 600 | N11: rye, tuna, cottage cheese, tomato | O11: 267
D12: skin cap | E12: 65 | F12: cake | G12: 150 | H12: carmans museli | I12: 170
E13: 110
B15: sub-total | C15: =SUM(C11:C14) -> 0 | D15: sub-total | E15: =SUM(E11:E14) -> 475 | F15: sub-total | G15: =SUM(G11:G14) -> 320 | H15: sub-total | I15: =SUM(I11:I14) -> 470 | J15: sub-total | K15: =SUM(K11:K14) -> 450 | L15: sub-total | M15: =SUM(M11:M14) -> 600 | N15: sub-total | O15: =SUM(O11:O14) -> 267
A16: dinner | B16: cauliflower soup | C16: 123 | D16: white wine | F16: treat meal | G16: 400 | H16: sushi | I16: 450 | J16: wine | K16: 623 | L16: roast beef and veg | M16: 400 | N16: cauliflower soup | O16: 123
F17: cocktail | G17: 157 | J17: salmon | K17: 327
F18: white wing | G18: 157 | J18: salmon | K18: 327
B19: sub-total | C19: =SUM(C16:C18) -> 123 | D19: sub-total | E19: =SUM(E16:E18) -> 0 | F19: sub-total | G19: =SUM(G16:G18) -> 714 | H19: sub-total | I19: =SUM(I16:I18) -> 450 | J19: sub-total | K19: =SUM(K16:K18) -> 1277 | L19: sub-total | M19: =SUM(M16:M18) -> 400 | N19: sub-total | O19: =SUM(O16:O18) -> 123
A20: snacks | B20: for me yoghurt | C20: 80 | D20: museli round | E20: 170 | F20: carmans museli round | G20: 170 | N20: rice crackers | O20: 60
B21: banana | C21: 110 | D21: 6 rice crackers | E21: 50 | F21: skiim cap | G21: 65
B22: sub-total | C22: =SUM(C20:C21) -> 190 | D22: sub-total | E22: =SUM(E20:E21) -> 220 | F22: sub-total | G22: =SUM(G20:G21) -> 235 | H22: sub-total | I22: =SUM(I20:I21) -> 0 | J22: sub-total | K22: =SUM(K20:K21) -> 0 | L22: sub-total | M22: =SUM(M20:M21) -> 0 | N22: sub-total | O22: =SUM(O20:O21) -> 60
A23: Total | C23: =SUM(C10+C15+C19+C22) ->  | E23: =SUM(E10+E15+E19+E22) ->  | G23: =SUM(G10+G15+G19+G22) ->  | I23: =SUM(I10+I15+I19+I22) ->  | K23: =SUM(K10+K15+K19+K22) ->  | M23: =SUM(M10+M15+M19+M22) ->  | O23: =SUM(O10+O15+O19+O22) -> 717 | Q23: weekly total | R23: =SUM(C23:O23) -> 
C25: =C23-$C$1 ->  | E25: =E23-$C$1 ->  | G25: =G23-$C$1 ->  | I25: =I23-$C$1 ->  | K25: =K23-$C$1 ->  | M25: =M23-$C$1 ->  | O25: =O23-$C$1 -> -483 | Q25: left over | R25: =R23-D1 -> 
A27: Exercise | Q27: avg cal / day | R27: =R23/7 -> 
B29: Energy balance | C29: =C23-C27 ->  | E29: =E23-E27 ->  | G29: =G23-G27 ->  | I29: =I23-I27 ->  | K29: =K23-K27 ->  | M29: =M23-M27 ->  | O29: =O23-O27 -> 717
B31: basal metabolic rate | C31: 1806 | E31: 1806 | G31: 1806
B33: balance for day | C33: =C23-C31-C27 ->  | E33: =E23-E31-E27 ->  | G33: =G23-G31-G27 -> 
A35: every step you take, every change you make on the 12WBT takes you in the right direction away from the person you were in that before photo :D

Sheet week 3 (hidden)
A1: Week 3 | B1: Calorie limit | C1: 1200 | D1: =C1*7 -> 8400
B3: Monday 5 July | D3: Tuesday 6 July | F3: Wednesday 7 July | H3: Thursday 8 July | J3: Friday 9 July | L3: Saturday 10 July | N3: Sunday 11 July | Q3: Notes
A4: red flags | B4: **Tyrone's party ** Teaching all day | D4: day before weigh in - exercise hard, eat light | F4: WEIGH IN - GOAL = 93 | J4: ** Thai lunch for Mel **
A5: exercise | F5: PT Session @ FF
A6: breakfast | B6: metamucil | C6: 60 | D6: carmans | E6: 170 | F6: =#REF! ->  | G6: =#REF! ->  | H6: =#REF! ->  | I6: =#REF! ->  | J6: =#REF! ->  | K6: =#REF! ->  | L6: =#REF! ->  | M6: =#REF! ->  | N6: =#REF! ->  | O6: =#REF! -> 
B7: meds, celery | C7: 0 | D7: meds, celery | E7: 0 | F7: meds, celery | G7: 0 | H7: meds, celery | I7: 0 | J7: meds, celery | K7: 0 | L7: meds, celery | M7: 0 | N7: meds, celery | O7: 0
B8: skinny cap | C8: 65 | D8: metmucil | E8: 60 | F8: green tea
D9: skinny cap | E9: 65 | F9: rye tuna leaves toms onion | G9: 300
F10: skinny cap | G10: 50
B11: sub-total | C11: =SUM(C6:C7) -> 60 | D11: sub-total | E11: =SUM(E6:E9) -> 295 | F11: sub-total | G11: =SUM(G6:G9) ->  | H11: sub-total | I11: =SUM(I6:I9) ->  | J11: sub-total | K11: =SUM(K6:K10) ->  | L11: sub-total | M11: =SUM(M6:M9) ->  | N11: sub-total | O11: =SUM(O6:O9) -> 
A12: lunch | B12: rye tuna leaves toms onion | C12: 300 | D12: skinny cap | E12: 65 | F12: rye tuna leaves toms onion | G12: 300 | H12: pumpkin soup | I12: 246.5 | J12: treat meal - thai | K12: 450 | L12: pumpkin soup | M12: 246.5 | N12: cauliflower soup | O12: 123
B16: sub-total | C16: =SUM(C12:C15) -> 300 | D16: sub-total | E16: =SUM(E12:E15) -> 65 | F16: sub-total | G16: =SUM(G12:G15) -> 300 | H16: sub-total | I16: =SUM(I12:I15) -> 246.5 | J16: sub-total | K16: =SUM(K12:K15) -> 450 | L16: sub-total | M16: =SUM(M12:M15) -> 246.5 | N16: sub-total | O16: =SUM(O12:O15) -> 123
A17: dinner | B17: rye tuna toms onion | C17: 267 | D17: sushi | E17: 700 | F17: sushi | G17: 600 | H17: cauliflower soup | I17: 123 | J17: pumpkin soup | K17: 246.5 | L17: cauliflower soup | M17: 123 | N17: pumpkin soup | O17: 246.5
B18: steak etc | C18: 300
B19: cake | C19: 200
B20: sub-total | C20: =SUM(C17:C19) -> 767 | D20: sub-total | E20: =SUM(E17:E19) -> 700 | F20: sub-total | G20: =SUM(G17:G19) -> 600 | H20: sub-total | I20: =SUM(I17:I19) -> 123 | J20: sub-total | K20: =SUM(K17:K19) -> 246.5 | L20: sub-total | M20: =SUM(M17:M19) -> 123 | N20: sub-total | O20: =SUM(O17:O19) -> 246.5
A21: snacks
B23: sub-total | C23: =SUM(C21:C22) -> 0 | D23: sub-total | E23: =SUM(E21:E22) -> 0 | F23: sub-total | G23: =SUM(G21:G22) -> 0 | H23: sub-total | I23: =SUM(I21:I22) -> 0 | J23: sub-total | K23: =SUM(K21:K22) -> 0 | L23: sub-total | M23: =SUM(M21:M22) -> 0 | N23: sub-total | O23: =SUM(O21:O22) -> 0
A24: Total | C24: =SUM(C11+C16+C20+C23) -> 1127 | E24: =SUM(E11+E16+E20+E23) -> 1060 | G24: =SUM(G11+G16+G20+G23) ->  | I24: =SUM(I11+I16+I20+I23) ->  | K24: =SUM(K11+K16+K20+K23) ->  | M24: =SUM(M11+M16+M20+M23) ->  | O24: =SUM(O11+O16+O20+O23) ->  | Q24: weekly total | R24: =SUM(C24:O24) -> 
C26: =C24-$C$1 -> -73 | E26: =E24-$C$1 -> -140 | G26: =G24-$C$1 ->  | I26: =I24-$C$1 ->  | K26: =K24-$C$1 ->  | M26: =M24-$C$1 ->  | O26: =O24-$C$1 ->  | Q26: left over | R26: =R24-D1 -> 
A28: Exercise | Q28: avg cal / day | R28: =R24/7 -> 
B30: Energy balance | C30: =C24-C28 -> 1127 | E30: =E24-E28 -> 1060 | G30: =G24-G28 ->  | I30: =I24-I28 ->  | K30: =K24-K28 ->  | M30: =M24-M28 ->  | O30: =O24-O28 -> 
B32: basal metabolic rate | C32: 1750 | E32: 1750 | G32: 1750 | I32: 1750 | K32: 1750 | M32: 1750 | O32: 1750
B34: balance for day | C34: =C24-C32-C28 -> -623 | E34: =E24-E32-E28 -> -690 | G34: =G24-G32-G28 ->  | I34: =I24-I32-I28 ->  | K34: =K24-K32-K28 ->  | M34: =M24-M32-M28 ->  | O34: =O24-O32-O28 -> 
A36: every step you take, every change you make on the 12WBT takes you in the right direction away from the person you were in that before photo :D

Sheet Week 4 (hidden)
A1: Week 1 | B1: Calorie limit | C1: 1200 | D1: =C1*7 -> 8400
B3: Monday | D3: Tuesday | F3: Wednesday | H3: Thursday | J3: Friday | L3: Saturday | N3: Sunday | Q3: Notes
B4: Notes: 8-2 PBL | D4: Notes: 11-2 PAH ** Pack lunch & snacks ** | F4: Notes: at home for meals | H4: Notes: at home | J4: Notes: 10 - 12 PAH. Drinks for Mel | L4: Notes: at home | N4: Notes: at home
A5: breakfast | B5: =#REF! ->  | C5: =#REF! ->  | D5: =#REF! ->  | E5: =#REF! ->  | F5: =#REF! ->  | G5: =#REF! ->  | H5: =#REF! ->  | I5: =#REF! ->  | J5: =#REF! ->  | K5: =#REF! ->  | L5: meds, celery | M5: 0 | N5: meds, celery | O5: 0
B6: meds, celery | C6: 0 | D6: meds, celery | E6: 0 | F6: meds, celery | G6: 0 | H6: meds, celery | I6: 0 | J6: meds, celery | K6: 0 | L6: =#REF! ->  | M6: =#REF! ->  | N6: =#REF! ->  | O6: =#REF! -> 
B7: banana | C7: 110 | D7: =#REF! ->  | E7: =#REF! ->  | F7: banana | G7: 110 | H7: =#REF! ->  | I7: =#REF! ->  | J7: banana | K7: 110
B8: forme yoghurt | C8: 40 | H8: banana | I8: 110
B9: =#REF! ->  | C9: =#REF! -> 
B10: sub-total | C10: =SUM(C5:C9) ->  | D10: sub-total | E10: =SUM(E5:E8) ->  | F10: sub-total | G10: =SUM(G5:G8) ->  | H10: sub-total | I10: =SUM(I5:I8) ->  | J10: sub-total | K10: =SUM(K5:K9) ->  | L10: sub-total | M10: =SUM(M5:M8) ->  | N10: sub-total | O10: =SUM(O5:O8) -> 
A11: lunch | B11: flat bread, tuna, tom, onion, leaves, beetroot | C11: 300 | D11: =#REF! ->  | E11: =#REF! ->  | F11: =#REF! ->  | G11: =#REF! ->  | J11: =#REF! ->  | K11: =#REF! ->  | L11: =#REF! ->  | M11: =#REF! ->  | N11: =#REF! ->  | O11: =#REF! -> 
B12: =#REF! ->  | C12: =#REF! ->  | D12: =#REF! ->  | E12: =#REF! ->  | F12: =#REF! ->  | G12: =#REF! ->  | H12: wrap tuna salad | I12: 300
B13: 2 x museli bars | C13: 220
B15: sub-total | C15: =SUM(C11:C14) ->  | D15: sub-total | E15: =SUM(E11:E14) ->  | F15: sub-total | G15: =SUM(G11:G14) ->  | H15: sub-total | I15: =SUM(I11:I14) -> 300 | J15: sub-total | K15: =SUM(K11:K14) ->  | L15: sub-total | M15: =SUM(M11:M14) ->  | N15: sub-total | O15: =SUM(O11:O14) -> 
A16: dinner | B16: 2 rye, steak | C16: 275 | D16: =#REF! ->  | E16: =#REF! ->  | F16: =#REF! ->  | G16: =#REF! ->  | H16: =#REF! ->  | I16: =#REF! ->  | J16: mels drinks | K16: 450 | L16: =#REF! ->  | M16: =#REF! ->  | N16: =#REF! ->  | O16: =#REF! -> 
B17: tomato, cottage cheese | C17: 50 | F17: cauli soup 1.5cups | G17: 92 | H17: sushi | I17: 350
B19: sub-total | C19: =SUM(C16:C18) -> 325 | D19: sub-total | E19: =SUM(E16:E18) ->  | F19: sub-total | G19: =SUM(G16:G18) ->  | H19: sub-total | I19: =SUM(I16:I18) ->  | J19: sub-total | K19: =SUM(K16:K18) -> 450 | L19: sub-total | M19: =SUM(M16:M18) ->  | N19: sub-total | O19: =SUM(O16:O18) -> 
A20: snacks | B20: forme yoghurt | C20: 40 | D20: make up for Monday | E20: 52 | F20: make up for Monday | G20: 52 | H20: make up for Monday | I20: 52 | J20: make up for Monday | K20: 52 | L20: make up for Monday | M20: 52 | N20: make up for Monday | O20: 52
B21: rye with honey | C21: 90 | D21: save for drinks | E21: 150 | F21: save for drinks | G21: 150 | H21: save for drinks | I21: 150 | J21: save for drinks | K21: 150 | L21: save for drinks | M21: 150 | N21: save for drinks | O21: 150
B22: sub-total | C22: =SUM(C20:C21) -> 130 | D22: sub-total | E22: =SUM(E20:E21) -> 202 | F22: sub-total | G22: =SUM(G20:G21) -> 202 | H22: sub-total | I22: =SUM(I20:I21) -> 202 | J22: sub-total | K22: =SUM(K20:K21) -> 202 | L22: sub-total | M22: =SUM(M20:M21) -> 202 | N22: sub-total | O22: =SUM(O20:O21) -> 202
A23: Total | C23: =SUM(C10+C15+C19+C22) ->  | E23: =SUM(E10+E15+E19+E22) ->  | G23: =SUM(G10+G15+G19+G22) ->  | I23: =SUM(I10+I15+I19+I22) ->  | K23: =SUM(K10+K15+K19+K22) ->  | M23: =SUM(M10+M15+M19+M22) ->  | O23: =SUM(O10+O15+O19+O22) ->  | Q23: weekly total | R23: =SUM(C23:O23) -> 
E24: =E23-E22 ->  | G24: =G23-G22 ->  | I24: =I23-I22 ->  | K24: =K23-K22 ->  | M24: =M23-M22 ->  | O24: =O23-O22 -> 
C25: =C23-$C$1 ->  | E25: =E23-$C$1 ->  | G25: =G23-$C$1 ->  | I25: =I23-$C$1 ->  | K25: =K23-$C$1 ->  | M25: =M23-$C$1 ->  | O25: =O23-$C$1 ->  | Q25: left over | R25: =R23-D1 -> 
K26: =E21*4 -> 600
A27: Exercise | Q27: avg cal / day | R27: =R23/7 -> 
B29: Energy balance | C29: =C23-C27 ->  | E29: =E23-E27 ->  | G29: =G23-G27 ->  | I29: =I23-I27 ->  | K29: =K23-K27 ->  | M29: =M23-M27 ->  | O29: =O23-O27 -> 
B31: basal metabolic rate | C31: 1806 | E31: 1806 | G31: 1806 | I31: 1806 | K31: 1806 | M31: 1806 | O31: 1806
B33: balance for day | C33: =C23-C31-C27 ->  | E33: =E23-E31-E27 ->  | G33: =G23-G31-G27 ->  | I33: =I23-I31-I27 ->  | K33: =K23-K31-K27 ->  | M33: =M23-M31-M27 ->  | O33: =O23-O31-O27 -> 
A35: every step you take, every change you make on the 12WBT takes you in the right direction away from the person you were in that before photo :D

Sheet week 5 (hidden)
A1: Week 1 | B1: Calorie limit | C1: 1200 | D1: =C1*7 -> 8400
B3: Monday | D3: Tuesday | F3: Wednesday | H3: Thursday | J3: Friday | L3: Saturday | N3: Sunday | Q3: Notes
B4: Notes: 8-2 PBL | D4: Notes: 11-2 PAH ** Pack lunch & snacks ** | F4: Notes: at home for meals | H4: Notes: at home | J4: Notes: 10 - 12 PAH. Drinks for Mel | L4: Notes: at home | N4: Notes: at home
A5: breakfast | B5: cartmans | D5: special K | F5: special k | H5: special K
H6: metamucil
B10: sub-total | C10: =SUM(C5:C9) -> 0 | D10: sub-total | E10: =SUM(E5:E8) -> 0 | F10: sub-total | G10: =SUM(G5:G8) -> 0 | H10: sub-total | I10: =SUM(I5:I8) -> 0 | J10: sub-total | K10: =SUM(K5:K9) -> 0 | L10: sub-total | M10: =SUM(M5:M8) -> 0 | N10: sub-total | O10: =SUM(O5:O8) -> 0
A11: lunch | F11: rye, tuna, tomato, cottage cheese | H11: flat bread, tuna and salad | I11: 300
F12: 1 bear biscuit
F13: hot chocolate
B15: sub-total | C15: =SUM(C11:C14) -> 0 | D15: sub-total | E15: =SUM(E11:E14) -> 0 | F15: sub-total | G15: =SUM(G11:G14) -> 0 | H15: sub-total | I15: =SUM(I11:I14) -> 300 | J15: sub-total | K15: =SUM(K11:K14) -> 0 | L15: sub-total | M15: =SUM(M11:M14) -> 0 | N15: sub-total | O15: =SUM(O11:O14) -> 0
A16: dinner | F16: mecca bah | M16: =#REF! ->  | N16: =#REF! ->  | O16: =#REF! -> 
F17: cocktail
F18: hot chocolate
B19: sub-total | C19: =SUM(C16:C18) -> 0 | D19: sub-total | E19: =SUM(E16:E18) -> 0 | F19: sub-total | G19: =SUM(G16:G18) -> 0 | H19: sub-total | I19: =SUM(I16:I18) -> 0 | J19: sub-total | K19: =SUM(K16:K18) -> 0 | L19: sub-total | M19: =SUM(M16:M18) ->  | N19: sub-total | O19: =SUM(O16:O18) -> 
A20: snacks
B22: sub-total | C22: =SUM(C20:C21) -> 0 | D22: sub-total | E22: =SUM(E20:E21) -> 0 | F22: sub-total | G22: =SUM(G20:G21) -> 0 | H22: sub-total | I22: =SUM(I20:I21) -> 0 | J22: sub-total | K22: =SUM(K20:K21) -> 0 | L22: sub-total | M22: =SUM(M20:M21) -> 0 | N22: sub-total | O22: =SUM(O20:O21) -> 0
A23: Total | C23: =SUM(C10+C15+C19+C22) -> 0 | E23: =SUM(E10+E15+E19+E22) -> 0 | G23: =SUM(G10+G15+G19+G22) -> 0 | I23: =SUM(I10+I15+I19+I22) -> 300 | K23: =SUM(K10+K15+K19+K22) -> 0 | M23: =SUM(M10+M15+M19+M22) ->  | O23: =SUM(O10+O15+O19+O22) ->  | Q23: weekly total | R23: =SUM(C23:O23) -> 
E24: =E23-E22 -> 0 | G24: =G23-G22 -> 0 | I24: =I23-I22 -> 300 | K24: =K23-K22 -> 0 | M24: =M23-M22 ->  | O24: =O23-O22 -> 
C25: =C23-$C$1 -> -1200 | E25: =E23-$C$1 -> -1200 | G25: =G23-$C$1 -> -1200 | I25: =I23-$C$1 -> -900 | K25: =K23-$C$1 -> -1200 | M25: =M23-$C$1 ->  | O25: =O23-$C$1 ->  | Q25: left over | R25: =R23-D1 -> 
K26: =E21*4 -> 0
A27: Exercise | Q27: avg cal / day | R27: =R23/7 -> 
B29: Energy balance | C29: =C23-C27 -> 0 | E29: =E23-E27 -> 0 | G29: =G23-G27 -> 0 | I29: =I23-I27 -> 300 | K29: =K23-K27 -> 0 | M29: =M23-M27 ->  | O29: =O23-O27 -> 
B31: basal metabolic rate | C31: 1806 | E31: 1806 | G31: 1806 | I31: 1806 | K31: 1806 | M31: 1806 | O31: 1806
B33: balance for day | C33: =C23-C31-C27 -> -1806 | E33: =E23-E31-E27 -> -1806 | G33: =G23-G31-G27 -> -1806 | I33: =I23-I31-I27 -> -1506 | K33: =K23-K31-K27 -> -1806 | M33: =M23-M31-M27 ->  | O33: =O23-O31-O27 -> 
A35: every step you take, every change you make on the 12WBT takes you in the right direction away from the person you were in that before photo :D

Sheet Week 6 (hidden)
A1: Week 6 | B1: Calorie limit | C1: 1200 | D1: =C1*7 -> 8400
B8: Monday 26 July | D8: Tuesday 27 July | F8: Wednesday 28 July | H8: Thursday 29 July | J8: Friday 30 July | L8: Saturday 31 July | N8: Sunday 1 August | Q8: Notes
B9: Notes: 8-2 PBL. Buy salad sandwich, pack snacks | D9: Notes: | F9: Notes: | H9: Notes: 10 - 3 PBL. Buy salad sandwich, pack snacks | J9: CSIRO Ed - pack lunch & snacks for whole day | L9: Notes: | N9: Notes:
A10: breakfast | B10: skinny cap | C10: 65 | D10: Baked Beans (220g), 1x toast, no butter | E10: 290 | F10: Baked Beans (220g), 1x toast, no butter | G10: 290 | H10: skinny cap | I10: 65 | J10: carmans | K10: 190 | L10: scrambled eggs, tomato | M10: 153 | N10: =#REF! ->  | O10: =#REF! -> 
B11: meds, celery | C11: 0 | D11: 1 x rye bread toast | E11: 75 | F11: 1 x rye bread toast | G11: 75 | H11: =#REF! ->  | I11: =#REF! ->  | J11: =#REF! ->  | K11: =#REF! ->  | L11: =#REF! ->  | N11: =#REF! ->  | O11: =#REF! -> 
D12: =#REF! ->  | E12: =#REF! ->  | F12: =#REF! ->  | G12: =#REF! ->  | H12: meds, celery | I12: 0 | J12: meds, celery | K12: 0 | L12: meds, celery | M12: 0 | N12: meds, celery | O12: 0
D13: meds, celery | E13: 0 | F13: meds, celery | G13: 0 | H13: carmans | I13: 190 | L13: 2 x rye bread | M13: 193
H14: strawberries | I14: 55 | L14: logicol | M14: 10
B15: sub-total | C15: =SUM(C10:C14) -> 65 | D15: sub-total | E15: =SUM(E10:E13) ->  | F15: sub-total | G15: =SUM(G10:G13) ->  | H15: sub-total | I15: =SUM(I10:I14) ->  | J15: sub-total | K15: =SUM(K10:K14) ->  | L15: sub-total | M15: =SUM(M10:M14) -> 356 | N15: sub-total | O15: =SUM(O10:O12) -> 
A16: lunch | B16: rye bread, tuna, salad | C16: 300 | D16: carmans museli | E16: 190 | F16: =#REF! ->  | G16: =#REF! ->  | H16: 1/2 carmans | I16: 95 | J16: =#REF! ->  | K16: =#REF! ->  | L16: carmans | M16: 170 | N16: =#REF! ->  | O16: =#REF! -> 
F17: soup | G17: 250 | J17: carmans | K17: 190 | N17: soup | O17: 250
B20: sub-total | C20: =SUM(C16:C19) -> 300 | D20: sub-total | E20: =SUM(E16:E19) -> 190 | F20: sub-total | G20: =SUM(G16:G19) ->  | H20: sub-total | I20: =SUM(I16:I19) -> 95 | J20: sub-total | K20: =SUM(K16:K19) ->  | M20: =SUM(M16:M19) -> 170 | N20: sub-total | O20: =SUM(O16:O19) -> 
A21: dinner | B21: chicken kantong & rice | C21: 400 | D21: sushi | E21: 350 | H21: sushi | I21: 400 | J21: rye tuna salad | K21: 300 | N21: =#REF! ->  | O21: =#REF! -> 
B22: 2 x rye toast and honey | C22: 200 | N22: soup | O22: 250
B24: sub-total | C24: =SUM(C21:C23) -> 600 | D24: sub-total | E24: =SUM(E21:E23) -> 350 | F24: sub-total | G24: =SUM(G21:G23) -> 0 | H24: sub-total | I24: =SUM(I21:I23) -> 400 | J24: sub-total | K24: =SUM(K21:K23) -> 300 | L24: sub-total | M24: =SUM(M21:M23) -> 0 | N24: sub-total | O24: =SUM(O21:O23) -> 
A25: snacks | B25: carman's museli bar | C25: 190 | D25: carman's museli bar | E25: 190 | F25: carmans | G25: 190
B26: carman's museli bar | C26: 190
B27: sub-total | C27: =SUM(C25:C26) -> 380 | D27: sub-total | E27: =SUM(E25:E26) -> 190 | F27: sub-total | G27: =SUM(G25:G26) -> 190 | H27: sub-total | I27: =SUM(I25:I26) -> 0 | J27: sub-total | K27: =SUM(K25:K26) -> 0 | L27: sub-total | M27: =SUM(M25:M26) -> 0 | N27: sub-total | O27: =SUM(O25:O26) -> 0
A28: Total | C28: =SUM(C15+C20+C24+C27) -> 1345 | E28: =SUM(E15+E20+E24+E27) ->  | G28: =SUM(G15+G20+G24+G27) ->  | I28: =SUM(I15+I20+I24+I27) ->  | K28: =SUM(K15+K20+K24+K27) ->  | M28: =SUM(M15+M20+M24+M27) -> 526 | O28: =SUM(O15+O20+O24+O27) ->  | Q28: weekly total | R28: =SUM(C28:O28) -> 
A30: remaining calories | C30: =C28-$C$1 -> 145 | E30: =E28-$C$1 ->  | G30: =G28-$C$1 ->  | I30: =I28-$C$1 ->  | K30: =K28-$C$1 ->  | M30: =M28-$C$1 -> -674 | O30: =O28-$C$1 ->  | Q30: left over | R30: =R28-D1 -> 
A32: Exercise | Q32: avg cal / day | R32: =R28/7 -> 
B34: Energy balance | C34: =C28-C32 -> 1345 | E34: =E28-E32 ->  | G34: =G28-G32 ->  | I34: =I28-I32 ->  | K34: =K28-K32 ->  | M34: =M28-M32 -> 526 | O34: =O28-O32 -> 
B36: basal metabolic rate | C36: 1738 | E36: 1730 | G36: 1730 | I36: 1730 | K36: 1738 | M36: 1738 | O36: 1738
B38: balance for day | C38: =C28-C36-C32 -> -393 | E38: =E28-E36-E32 ->  | G38: =G28-G36-G32 ->  | I38: =I28-I36-I32 ->  | K38: =K28-K36-K32 ->  | M38: =M28-M36-M32 -> -1212 | O38: =O28-O36-O32 -> 
A40: every step you take, every change you make on the 12WBT takes you in the right direction away from the person you were in that before photo :D

Sheet Week 7 (hidden)
A1: Week 6 | B1: Calorie limit | C1: 1200 | D1: =C1*7 -> 8400
L5: 35 min walk in AM
L6: lowest wt to date! Yay!
L8: 96.5
B9: Monday 2 August | D9: Tuesday 3 | F9: Wednesday 4 | H9: Thursday 5 | J9: Friday 6 | L9: Saturday 7 | N9: Sunday 8 | Q9: Notes
B10: Notes: 8-2 PBL. Buy salad sandwich, pack snacks | D10: Notes: | F10: Notes: | H10: Notes: 10 - 3 PBL. Buy salad sandwich, pack snacks | J10: CSIRO Ed - pack lunch & snacks for whole day | L10: Notes:
A11: breakfast | B11: special k and milk | C11: 166 | D11: special k and milk | E11: 166 | F11: carmans | G11: 190 | H11: special k | I11: 166 | J11: special k | K11: 166 | L11: 2 egs & 2 rye + logicol | M11: 350
B12: meds | C12: 0 | D12: =#REF! ->  | E12: =#REF! ->  | L12: =#REF! ->  | M12: =#REF! ->  | N12: =#REF! ->  | O12: =#REF! -> 
D13: meds, celery | E13: 0 | F13: meds, celery | G13: 0 | H13: meds, celery | I13: 0 | J13: meds, celery | K13: 0 | L13: meds, celery | M13: 0 | N13: meds, celery | O13: 0
B16: sub-total | C16: =SUM(C11:C15) -> 166 | D16: sub-total | E16: =SUM(E11:E14) ->  | F16: sub-total | G16: =SUM(G11:G14) -> 190 | H16: sub-total | I16: =SUM(I11:I14) -> 166 | J16: sub-total | K16: =SUM(K11:K15) -> 166 | L16: sub-total | M16: =SUM(M11:M14) ->  | N16: sub-total | O16: =SUM(O11:O14) -> 
A17: lunch | B17: rye tuna salad | C17: 250 | H17: carmans | I17: 190 | J17: carmans | K17: 190 | L17: soup | M17: 250
L18: =#REF! ->  | M18: =#REF! ->  | N18: =#REF! ->  | O18: =#REF! -> 
B21: sub-total | C21: =SUM(C17:C20) -> 250 | D21: sub-total | E21: =SUM(E17:E20) -> 0 | F21: sub-total | G21: =SUM(G17:G20) -> 0 | H21: sub-total | I21: =SUM(I17:I20) -> 190 | J21: sub-total | K21: =SUM(K17:K20) -> 190 | L21: sub-total | M21: =SUM(M17:M20) ->  | N21: sub-total | O21: =SUM(O17:O20) -> 
A22: dinner | B22: soup | C22: 246 | D22: soup | E22: 246 | F22: carmans | G22: 190 | H22: sushi | I22: 350 | J22: salmon x 2 | K22: 300
H23: carmans | I23: 190 | J23: rye tuna salad | K23: 250 | L23: =#REF! ->  | M23: =#REF! ->  | N23: =#REF! ->  | O23: =#REF! -> 
B25: sub-total | C25: =SUM(C22:C24) -> 246 | D25: sub-total | E25: =SUM(E22:E24) -> 246 | F25: sub-total | G25: =SUM(G22:G24) -> 190 | H25: sub-total | I25: =SUM(I22:I24) -> 540 | J25: sub-total | K25: =SUM(K22:K24) -> 550 | L25: sub-total | M25: =SUM(M22:M24) ->  | N25: sub-total | O25: =SUM(O22:O24) -> 
A26: snacks | H26: sorbet | I26: 200 | J26: carmans | K26: 190
J27: carmans | K27: 190
B28: sub-total | C28: =SUM(C26:C27) -> 0 | D28: sub-total | E28: =SUM(E26:E27) -> 0 | F28: sub-total | G28: =SUM(G26:G27) -> 0 | H28: sub-total | I28: =SUM(I26:I27) -> 200 | J28: sub-total | K28: =SUM(K26:K27) -> 380 | L28: sub-total | M28: =SUM(M26:M27) -> 0 | N28: sub-total | O28: =SUM(O26:O27) -> 0
A29: Total | C29: =SUM(C16+C21+C25+C28) -> 662 | E29: =SUM(E16+E21+E25+E28) ->  | G29: =SUM(G16+G21+G25+G28) -> 380 | I29: =SUM(I16+I21+I25+I28) -> 1096 | K29: =SUM(K16+K21+K25+K28) -> 1286 | M29: =SUM(M16+M21+M25+M28) ->  | O29: =SUM(O16+O21+O25+O28) ->  | Q29: weekly total | R29: =SUM(C29:O29) -> 
A31: remaining calories | C31: =C29-$C$1 -> -538 | E31: =E29-$C$1 ->  | G31: =G29-$C$1 -> -820 | I31: =I29-$C$1 -> -104 | K31: =K29-$C$1 -> 86 | M31: =M29-$C$1 ->  | O31: =O29-$C$1 ->  | Q31: left over | R31: =R29-D1 -> 
A33: Exercise | Q33: avg cal / day | R33: =R29/7 -> 
B35: Energy balance | C35: =C29-C33 -> 662 | E35: =E29-E33 ->  | G35: =G29-G33 -> 380 | I35: =I29-I33 -> 1096 | K35: =K29-K33 -> 1286 | M35: =M29-M33 ->  | O35: =O29-O33 -> 
B37: basal metabolic rate | C37: 1738 | E37: 1738 | G37: 1738 | I37: 1738 | K37: 1738 | M37: 1738 | O37: 1738
B39: balance for day | C39: =C29-C37-C33 -> -1076 | E39: =E29-E37-E33 ->  | G39: =G29-G37-G33 -> -1358 | I39: =I29-I37-I33 -> -642 | K39: =K29-K37-K33 -> -452 | M39: =M29-M37-M33 ->  | O39: =O29-O37-O33 -> 
A41: every step you take, every change you make on the 12WBT takes you in the right direction away from the person you were in that before photo :D

Sheet Week 8 (hidden)
A1: Week 8 | B1: Calorie limit | C1: 1200 | D1: =C1*7 -> 8400
B8: 14km bike | C8: YES | D8: 10 km walk
B9: ACCELERATOR DAY | C9: YES | D9: ACCELERATOR DAY | I9: 94.5
B10: Monday 9 August | D10: Tuesday 10 | F10: Wednesday 11 | H10: Thursday 12 | J10: Friday 13 | L10: Saturday 14 | N10: Sunday 15 | Q10: Notes
B11: Notes: 8-2 PBL. Buy salad sandwich, pack snacks | D11: Notes: | F11: Notes: | H11: Notes: 10 - 3 PBL. Buy salad sandwich, pack snacks | L11: Notes: | N11: Notes:
A12: breakfast | B12: meds, celery | C12: 0 | F12: carmans | G12: 190 | H12: carmans | I12: 190 | J12: carmans | K12: 190 | L12: 2 rye | M12: 193 | O12: 300
B13: green tea x 2 | C13: 0 | J13: metamucil (3tsp) | K13: =#REF! ->  | L13: 1 egg | M13: 71 | N13: metamucil (3tsp) | O13: =#REF! -> 
J14: meds, celery | K14: 0 | L14: egg white | M14: 13 | N14: meds, celery | O14: 0
L15: 1/2 cup physical | M15: 53
L16: 1 tomato | M16: 18
L17: =SUM(M12:M16) -> 348
L18: metamucil (3tsp) | M18: =#REF! -> 
L19: meds, celery | M19: 0
B20: sub-total | C20: =SUM(C12:C15) -> 0 | D20: sub-total | E20: =SUM(E12:E15) -> 0 | F20: sub-total | G20: =SUM(G12:G15) -> 190 | H20: sub-total | I20: =SUM(I12:I15) -> 190 | J20: sub-total | K20: =SUM(K12:K19) ->  | L20: sub-total | M20: =SUM(M12:M19) ->  | N20: sub-total | O20: =SUM(O12:O15) -> 
A21: lunch | B21: casserole | C21: 285 | F21: casserole & 1 bread | G21: 300 | H21: carmans | I21: 190 | J21: metamucil (3tsp) | K21: =#REF! ->  | L21: metamucil (3tsp) | M21: =#REF! ->  | N21: metamucil (3tsp) | O21: =#REF! -> 
B22: green tea x 2 | C22: 0 | H22: half orange | I22: 40 | J22: wrap | K22: 350 | L22: cauli soup | M22: 125
J23: carmans | K23: 190
B25: sub-total | C25: =SUM(C21:C24) -> 285 | D25: sub-total | E25: =SUM(E21:E24) -> 0 | F25: sub-total | G25: =SUM(G21:G24) -> 300 | H25: sub-total | I25: =SUM(I21:I24) -> 230 | J25: sub-total | K25: =SUM(K21:K24) ->  | L25: sub-total | M25: =SUM(M21:M24) ->  | N25: sub-total | O25: =SUM(O21:O24) -> 
A26: dinner | B26: casserole | C26: 285 | D26: sushi | E26: 350 | F26: soup | G26: 246 | J26: metamucil (3tsp) | K26: =#REF! ->  | L26: metamucil (3tsp) | M26: =#REF! ->  | N26: metamucil (3tsp) | O26: =#REF! -> 
B27: casserole | C27: 285 | D27: hot choc | E27: 45 | J27: soup | K27: 120
J28: wrap | K28: 250
B29: sub-total | C29: =SUM(C26:C28) -> 570 | D29: sub-total | E29: =SUM(E26:E28) -> 395 | F29: sub-total | G29: =SUM(G26:G28) -> 246 | H29: sub-total | I29: =SUM(I26:I28) -> 0 | J29: sub-total | K29: =SUM(K26:K28) ->  | L29: sub-total | M29: =SUM(M26:M28) ->  | N29: sub-total | O29: =SUM(O26:O28) -> 
A30: snacks
B32: sub-total | C32: =SUM(C30:C31) -> 0 | D32: sub-total | E32: =SUM(E30:E31) -> 0 | F32: sub-total | G32: =SUM(G30:G31) -> 0 | H32: sub-total | I32: =SUM(I30:I31) -> 0 | J32: sub-total | K32: =SUM(K30:K31) -> 0 | L32: sub-total | M32: =SUM(M30:M31) -> 0 | N32: sub-total | O32: =SUM(O30:O31) -> 0
A33: Total | C33: =SUM(C20+C25+C29+C32) -> 855 | E33: =SUM(E20+E25+E29+E32) -> 395 | G33: =SUM(G20+G25+G29+G32) -> 736 | I33: =SUM(I20+I25+I29+I32) -> 420 | K33: =SUM(K20+K25+K29+K32) ->  | M33: =SUM(M20+M25+M29+M32) ->  | O33: =SUM(O20+O25+O29+O32) ->  | Q33: weekly total | R33: =SUM(C33:O33) -> 
G34: =SUM(C33+D33+G33) -> 1591
A35: remaining calories | C35: =C33-$C$1 -> -345 | E35: =E33-$C$1 -> -805 | G35: =G33-$C$1 -> -464 | I35: =I33-$C$1 -> -780 | K35: =K33-$C$1 ->  | M35: =M33-$C$1 ->  | O35: =O33-$C$1 ->  | Q35: left over | R35: =R33-D1 ->  | S35: =R35/1200 -> 
A37: Exercise | Q37: avg cal / day | R37: =R33/7 -> 
B39: Energy balance | C39: =C33-C37 -> 855 | E39: =E33-E37 -> 395 | G39: =G33-G37 -> 736 | I39: =I33-I37 -> 420 | K39: =K33-K37 ->  | M39: =M33-M37 ->  | O39: =O33-O37 -> 
B41: basal metabolic rate | C41: 1728 | E41: 1728 | G41: 1728 | I41: 1728 | K41: 1728 | M41: 1728 | O41: 1728
B43: balance for day | C43: =C33-C41-C37 -> -873 | E43: =E33-E41-E37 -> -1333 | G43: =G33-G41-G37 -> -992 | I43: =I33-I41-I37 -> -1308 | K43: =K33-K41-K37 ->  | M43: =M33-M41-M37 ->  | O43: =O33-O41-O37 -> 
A45: every step you take, every change you make on the 12WBT takes you in the right direction away from the person you were in that before photo :D

Sheet Week 9 (hidden)
A1: Week 8 | B1: Calorie limit | C1: 1200 | D1: =C1*7 -> 8400
B9: ACCELERATOR DAY | D9: ACCELERATOR DAY
B10: Monday 16 August | D10: Tuesday 17 | F10: Wednesday 18 | H10: Thursday 19 | J10: Friday 20 | L10: Saturday 21 | N10: Sunday 22 | Q10: Notes
B11: Notes: 8-2 PBL. Buy salad sandwich, pack snacks | D11: Notes: | F11: Notes: | H11: Notes: 10 - 3 PBL. Buy salad sandwich, pack snacks | L11: Notes: | N11: Notes:
A12: breakfast | B12: strawberries (6 large) | C12: 45 | D12: strawberries (6 large) | E12: 45 | F12: special k | G12: 166 | H12: special k | I12: 166 | J12: special k | K12: 166 | L12: eggs & toast | M12: 300 | N12: baked beans & toast | O12: 300
B13: orange | C13: 90 | D13: orange | E13: 90 | F13: metamucil (3tsp) | G13: =#REF! ->  | H13: metamucil (3tsp) | I13: =#REF! ->  | J13: metamucil (3tsp) | K13: =#REF! ->  | L13: metamucil (3tsp) | M13: =#REF! ->  | N13: metamucil (3tsp) | O13: =#REF! -> 
B14: for me yoghurt | C14: 80 | D14: for me yoghurt | E14: 80 | F14: meds, celery | G14: 0 | H14: meds, celery | I14: 0 | J14: meds, celery | K14: 0 | L14: meds, celery | M14: 0 | N14: meds, celery | O14: 0
B15: metamucil (3tsp) | C15: =#REF! ->  | D15: metamucil (3tsp) | E15: =#REF! ->  | H15: banana | I15: 110
B16: meds, celery | C16: 0 | D16: meds, celery | E16: 0
B17: sub-total | C17: =SUM(C12:C16) ->  | D17: sub-total | E17: =SUM(E12:E15) ->  | F17: sub-total | G17: =SUM(G12:G15) ->  | H17: sub-total | I17: =SUM(I12:I15) ->  | J17: sub-total | K17: =SUM(K12:K16) ->  | L17: sub-total | M17: =SUM(M12:M15) ->  | N17: sub-total | O17: =SUM(O12:O15) -> 
A18: lunch | B18: metamucil (3tsp) | C18: =#REF! ->  | D18: metamucil (3tsp) | E18: =#REF! ->  | F18: metamucil (3tsp) | G18: =#REF! ->  | H18: metamucil (3tsp) | I18: =#REF! ->  | J18: metamucil (3tsp) | K18: =#REF! ->  | L18: metamucil (3tsp) | M18: =#REF! ->  | N18: metamucil (3tsp) | O18: =#REF! -> 
B19: soup | C19: 250 | D19: soup | E19: 250 | F19: soup | G19: 250 | H19: wrap tuna salad | I19: 300 | J19: wrap tuna salad | K19: 300 | L19: soup | M19: 250 | N19: soup | O19: 250
B22: sub-total | C22: =SUM(C18:C21) ->  | D22: sub-total | E22: =SUM(E18:E21) ->  | F22: sub-total | G22: =SUM(G18:G21) ->  | H22: sub-total | I22: =SUM(I18:I21) ->  | J22: sub-total | K22: =SUM(K18:K21) ->  | L22: sub-total | M22: =SUM(M18:M21) ->  | N22: sub-total | O22: =SUM(O18:O21) -> 
A23: dinner | B23: metamucil (3tsp) | C23: =#REF! ->  | D23: metamucil (3tsp) | E23: =#REF! ->  | F23: metamucil (3tsp) | G23: =#REF! ->  | H23: metamucil (3tsp) | I23: =#REF! ->  | J23: metamucil (3tsp) | K23: =#REF! ->  | L23: metamucil (3tsp) | M23: =#REF! ->  | N23: metamucil (3tsp) | O23: =#REF! -> 
B24: soup | C24: 250 | D24: soup | E24: 250 | F24: sushi | G24: 350 | H24: soup | I24: 250 | J24: soup | K24: 250 | L24: soup | M24: 250 | N24: soup | O24: 250
B26: sub-total | C26: =SUM(C23:C25) ->  | D26: sub-total | E26: =SUM(E23:E25) ->  | F26: sub-total | G26: =SUM(G23:G25) ->  | H26: sub-total | I26: =SUM(I23:I25) ->  | J26: sub-total | K26: =SUM(K23:K25) ->  | L26: sub-total | M26: =SUM(M23:M25) ->  | N26: sub-total | O26: =SUM(O23:O25) -> 
A27: snacks | B27: for me yoghurt | C27: 80 | D27: for me yoghurt | E27: 80
B28: fruit | C28: 80 | D28: fruit | E28: 80
B29: sub-total | C29: =SUM(C27:C28) -> 160 | D29: sub-total | E29: =SUM(E27:E28) -> 160 | F29: sub-total | G29: =SUM(G27:G28) -> 0 | H29: sub-total | I29: =SUM(I27:I28) -> 0 | J29: sub-total | K29: =SUM(K27:K28) -> 0 | L29: sub-total | M29: =SUM(M27:M28) -> 0 | N29: sub-total | O29: =SUM(O27:O28) -> 0
A30: Total | C30: =SUM(C17+C22+C26+C29) ->  | E30: =SUM(E17+E22+E26+E29) ->  | G30: =SUM(G17+G22+G26+G29) ->  | I30: =SUM(I17+I22+I26+I29) ->  | K30: =SUM(K17+K22+K26+K29) ->  | M30: =SUM(M17+M22+M26+M29) ->  | O30: =SUM(O17+O22+O26+O29) ->  | Q30: weekly total | R30: =SUM(C30:O30) -> 
A32: remaining calories | C32: =C30-$C$1 ->  | E32: =E30-$C$1 ->  | G32: =G30-$C$1 ->  | I32: =I30-$C$1 ->  | K32: =K30-$C$1 ->  | M32: =M30-$C$1 ->  | O32: =O30-$C$1 ->  | Q32: left over | R32: =R30-D1 -> 
A34: Exercise | Q34: avg cal / day | R34: =R30/7 -> 
B36: Energy balance | C36: =C30-C34 ->  | E36: =E30-E34 ->  | G36: =G30-G34 ->  | I36: =I30-I34 ->  | K36: =K30-K34 ->  | M36: =M30-M34 ->  | O36: =O30-O34 -> 
B38: basal metabolic rate | C38: 1728 | E38: 1728 | G38: 1728 | I38: 1728 | K38: 1728 | M38: 1728 | O38: 1728
B40: balance for day | C40: =C30-C38-C34 ->  | E40: =E30-E38-E34 ->  | G40: =G30-G38-G34 ->  | I40: =I30-I38-I34 ->  | K40: =K30-K38-K34 ->  | M40: =M30-M38-M34 ->  | O40: =O30-O38-O34 -> 
A42: every step you take, every change you make on the 12WBT takes you in the right direction away from the person you were in that before photo :D

Sheet Week 10 (hidden)
A1: Week 10 | B1: Calorie limit | C1: 1200 | D1: =C1*7 -> 8400
W2: 93.5 | Y2: Loss | Z2: LTD | AA2: TO GO
Q3: Wed | R3: 2010-08-25 | S3: 93.5 | T3: =S3/2.96 -> 31.58783784 | V3: wed pm | W3: 93.4 | X3: J
Q4: Thu | R4: 2010-08-26 | S4: =S3-0.75 -> 92.75 | T4: =S4/2.96 -> 31.33445946 | V4: thur am
Q5: Fri | R5: 2010-08-27 | S5: =S4-0.75 -> 92 | T5: 31.08108108 | V5: thur pm
Q6: Sat | R6: 2010-08-28 | S6: 91.25 | T6: 30.8277027 | V6: fri am | W6: 92.7 | X6: J | Y6: =W2-W6 -> 0.8 | Z6: =105-W6 -> 12.3 | AA6: =20-Z6 -> 7.7
Q7: Sun | R7: 2010-08-29 | S7: 90.5 | T7: 30.57432432 | V7: fri pm | X7: 91.5 | Y7: =W6-X7 -> 1.2 | Z7: =105-X7 -> 13.5 | AA7: =20-Z7 -> 6.5
B8: 95.5 | D8: 94.3 | E8: 93.8 | F8: 93.5 | Q8: Mon | R8: 2010-08-30 | S8: 89.75 | T8: 30.32094595 | U8: Sub 90 kg | V8: sat am | X8: 91 | Y8: =X7-X8 -> 0.5 | Z8: 14 | AA8: 6
B9: ACCELERATOR DAY | D9: ACCELERATOR DAY | F9: 93.4 | H9: ACCELERATOR DAY | L9: ACCELERATOR DAY | Q9: Tue | R9: 2010-08-31 | S9: 89 | T9: 30.06756757 | V9: sat pm | X9: 90.8 | Y9: =X8-X9 -> 0.2 | Z9: 14.2 | AA9: 5.8
B10: Monday 23 August | D10: Tuesday 24 | F10: Wednesday 25 | H10: Thursday 26 | J10: Friday 27 | L10: Saturday 28 | N10: Sunday 29 | Q10: Wed | R10: 2010-09-01 | S10: 88.25 | T10: 29.81418919 | U10: Next 12WBT weigh in Under 30 BMI & 90kgs | V10: sun am | X10: 90.2 | Y10: 0.6 | Z10: 14.8 | AA10: 5.2
B11: Notes: 8-2 PBL. Buy salad sandwich, pack snacks | D11: Notes: | F11: Notes: | H11: Notes: 10 - 3 PBL. Buy salad sandwich, pack snacks | L11: Notes: | N11: Notes: | Q11: Thu | R11: 2010-09-02 | S11: =S10-0.75 -> 87.5 | T11: 29.56081081 | V11: sun pm | X11: 90 | Y11: 0.2 | Z11: 15 | AA11: 5
A12: breakfast | B12: metamucil (3tsp) | C12: =#REF! ->  | D12: omlette | E12: 260 | H12: omelette | I12: 260 | J12: porridge | K12: 140 | L12: omelette | M12: 140 | N12: porridge | O12: 140 | Q12: Fri | R12: 2010-09-03 | S12: 86.75 | T12: 29.30743243 | V12: mon am | X12: 89.8 | Y12: 0.2 | Z12: 15.2 | AA12: 4.8
B13: meds, celery | C13: 0 | D13: metamucil (3tsp) | E13: =#REF! ->  | H13: metamucil (3tsp) | I13: =#REF! ->  | J13: 1/4 cup physical | K13: 26 | L13: metamucil (3tsp) | M13: =#REF! ->  | N13: 1/4 cup physical | O13: 26 | Q13: Sat | R13: 2010-09-04 | S13: 86 | T13: 29.05405405 | V13: mon pm | X13: 89.5 | Y13: 0.3 | Z13: 15.5 | AA13: 4.5
D14: meds, celery | E14: 0 | F14: meds, celery | G14: 0 | H14: meds, celery | I14: 0 | J14: metamucil (3tsp) | K14: =#REF! ->  | L14: meds, celery | M14: 0 | N14: metamucil (3tsp) | O14: =#REF! ->  | Q14: Sun | R14: 2010-09-05 | S14: 85.25 | T14: 28.80067568 | V14: tues am | X14: 89 | Y14: 0.5 | Z14: 16 | AA14: 4
J15: meds, celery | K15: 0 | N15: meds, celery | O15: 0 | Q15: Mon | R15: 2010-09-06 | S15: 84.5 | T15: 28.5472973 | U15: GOAL 20kg loss | V15: tues pm | X15: 88.8 | Y15: 0.2 | Z15: 16.2 | AA15: 3.8
B16: sub-total | C16: =SUM(C12:C13) ->  | D16: sub-total | E16: =SUM(E12:E13) ->  | F16: sub-total | G16: =SUM(G12:G14) -> 0 | H16: sub-total | I16: =SUM(I12:I14) ->  | J16: sub-total | K16: =SUM(K12:K15) ->  | L16: sub-total | M16: =SUM(M12:M14) ->  | N16: sub-total | O16: =SUM(O12:O15) ->  | Q16: Tue | R16: 2010-09-07 | S16: 83.75 | T16: 28.29391892 | V16: wed am | X16: 88.3 | Y16: 0.5 | Z16: 16.7 | AA16: 3.3
A17: lunch | B17: metamucil (3tsp) | C17: =#REF! ->  | F17: metamucil (3tsp) | G17: =#REF! ->  | H17: metamucil (3tsp) | I17: =#REF! ->  | J17: metamucil (3tsp) | K17: =#REF! ->  | L17: metamucil (3tsp) | M17: =#REF! ->  | N17: metamucil (3tsp) | O17: =#REF! ->  | Q17: Wed | R17: 2010-09-08 | S17: 83 | T17: 28.04054054 | U17: Last weigh in | V17: wed pm | X17: 88 | Y17: 0.3 | Z17: 17 | AA17: 3
B18: casserol | C18: 280 | D18: soup | E18: 120 | F18: omlette | G18: 260 | H18: soup | I18: 250 | J18: soup | K18: 250 | L18: soup | M18: 250 | N18: soup | O18: 250 | Q18: Thu | R18: 2010-09-09 | S18: 82 | T18: 27.7027027
B19: grilled zucchini | C19: 80 | Q19: Fri | R19: 2010-09-10 | S19: 81 | T19: 27.36486486
B20: celery | C20: 0 | Q20: Sat | R20: 2010-09-11 | S20: 80 | T20: 27.02702703 | U20: Party
B21: sub-total | C21: =SUM(C17:C20) ->  | D21: sub-total | E21: =SUM(E17:E20) -> 120 | F21: sub-total | G21: =SUM(G17:G20) ->  | H21: sub-total | I21: =SUM(I17:I20) ->  | J21: sub-total | K21: =SUM(K17:K20) ->  | L21: sub-total | M21: =SUM(M17:M20) ->  | N21: sub-total | O21: =SUM(O17:O20) -> 
A22: dinner | B22: metamucil (3tsp) | C22: =#REF! ->  | D22: biscuit, tuna & tom | E22: 200 | F22: metamucil (3tsp) | G22: =#REF! ->  | H22: metamucil (3tsp) | I22: =#REF! ->  | J22: metamucil (3tsp) | K22: =#REF! ->  | L22: metamucil (3tsp) | M22: =#REF! ->  | N22: metamucil (3tsp) | O22: =#REF! -> 
B23: grilled zucchini & p.kin | C23: 80 | F23: sushi | G23: 350 | H23: soup | I23: 250 | J23: soup | K23: 250 | L23: soup | M23: 250 | N23: soup | O23: 250
B25: sub-total | C25: =SUM(C22:C24) ->  | D25: sub-total | E25: =SUM(E22:E24) -> 200 | F25: sub-total | G25: =SUM(G22:G24) ->  | H25: sub-total | I25: =SUM(I22:I24) ->  | J25: sub-total | K25: =SUM(K22:K24) ->  | L25: sub-total | M25: =SUM(M22:M24) ->  | N25: sub-total | O25: =SUM(O22:O24) -> 
A26: snacks
B28: sub-total | C28: =SUM(C26:C27) -> 0 | D28: sub-total | E28: =SUM(E26:E27) -> 0 | F28: sub-total | G28: =SUM(G26:G27) -> 0 | H28: sub-total | I28: =SUM(I26:I27) -> 0 | J28: sub-total | K28: =SUM(K26:K27) -> 0 | L28: sub-total | M28: =SUM(M26:M27) -> 0 | N28: sub-total | O28: =SUM(O26:O27) -> 0
A29: Total | C29: =SUM(C16+C21+C25+C28) ->  | E29: =SUM(E16+E21+E25+E28) ->  | G29: =SUM(G16+G21+G25+G28) ->  | I29: =SUM(I16+I21+I25+I28) ->  | K29: =SUM(K16+K21+K25+K28) ->  | M29: =SUM(M16+M21+M25+M28) ->  | O29: =SUM(O16+O21+O25+O28) ->  | Q29: weekly total | R29: =SUM(C29:O29) -> 
A31: remaining calories | C31: =C29-$C$1 ->  | E31: =E29-$C$1 ->  | G31: =G29-$C$1 ->  | I31: =I29-$C$1 ->  | K31: =K29-$C$1 ->  | M31: =M29-$C$1 ->  | O31: =O29-$C$1 ->  | Q31: left over | R31: =R29-D1 -> 
A33: Exercise | D33: 30 min bike | F33: 1hr 10 bike | G33: 300 | Q33: avg cal / day | R33: =R29/7 -> 
F34: 30 min bike | G34: 120
B35: Energy balance | C35: =C29-C33 ->  | E35: =E29-E33 ->  | G35: =G29-G33 ->  | I35: =I29-I33 ->  | K35: =K29-K33 ->  | M35: =M29-M33 ->  | O35: =O29-O33 -> 
B37: basal metabolic rate | C37: 1728 | E37: 1728 | G37: 1728 | I37: 1728 | K37: 1728 | M37: 1728 | O37: 1728
B39: balance for day | C39: =C29-C37-C33 ->  | E39: =E29-E37-E33 ->  | G39: =G29-G37-G33 ->  | I39: =I29-I37-I33 ->  | K39: =K29-K37-K33 ->  | M39: =M29-M37-M33 ->  | O39: =O29-O37-O33 -> 
A41: every step you take, every change you make on the 12WBT takes you in the right direction away from the person you were in that before photo :D

Sheet Week 11 (hidden)
A1: Week 8 | B1: Calorie limit | C1: 1200 | D1: =C1*7 -> 8400
B9: ACCELERATOR DAY | D9: ACCELERATOR DAY
B10: Monday 30 August | D10: Tuesday 31 | F10: Wednesday 1 | H10: Thursday 2 | J10: Friday 3 | L10: Saturday 4 | N10: Sunday 5 | Q10: Notes
B11: Notes: 8-2 PBL. Buy salad sandwich, pack snacks | D11: Notes: | F11: Notes: | L11: Notes: | N11: Notes:
A12: breakfast | B12: salmon | C12: 327 | D12: salmon | E12: 327 | H12: omlette | I12: 260 | J12: salmon | K12: 327 | L12: salmon | M12: 327 | N12: special k | O12: 166
B13: metamucil (3tsp) | C13: =#REF! ->  | D13: metamucil (3tsp) | E13: =#REF! ->  | F13: metamucil (3tsp) | G13: =#REF! ->  | H13: metamucil (3tsp) | I13: =#REF! ->  | J13: metamucil (3tsp) | K13: =#REF! ->  | L13: metamucil (3tsp) | M13: =#REF! ->  | N13: metamucil (3tsp) | O13: =#REF! -> 
B14: meds, celery | C14: 0 | D14: meds, celery | E14: 0 | F14: meds, celery | G14: 0 | H14: meds, celery | I14: 0 | J14: meds, celery | K14: 0 | L14: meds, celery | M14: 0 | N14: meds, celery | O14: 0
D15: chicken breast | E15: 165
B17: sub-total | C17: =SUM(C12:C16) ->  | D17: sub-total | E17: =SUM(E12:E15) ->  | F17: sub-total | G17: =SUM(G12:G15) ->  | H17: sub-total | I17: =SUM(I12:I15) ->  | J17: sub-total | K17: =SUM(K12:K16) ->  | L17: sub-total | M17: =SUM(M12:M15) ->  | N17: sub-total | O17: =SUM(O12:O15) -> 
A18: lunch | B18: cauli soup | C18: 125 | D18: metamucil (3tsp) | E18: =#REF! ->  | H18: metamucil (3tsp) | I18: =#REF! ->  | J18: metamucil (3tsp) | K18: =#REF! ->  | L18: metamucil (3tsp) | M18: =#REF! ->  | N18: metamucil (3tsp) | O18: =#REF! -> 
B19: celery tab | D19: chicken breast | E19: 165 | H19: soup | I19: 125 | J19: soup | K19: 125 | L19: soup | M19: 125 | N19: soup | O19: 125
B20: carmans | C20: 190 | D20: vegies | E20: 80
V21: ideal
B22: sub-total | C22: =SUM(C18:C21) -> 315 | D22: sub-total | E22: =SUM(E18:E21) ->  | F22: sub-total | G22: =SUM(G18:G21) -> 0 | H22: sub-total | I22: =SUM(I18:I21) ->  | J22: sub-total | K22: =SUM(K18:K21) ->  | L22: sub-total | M22: =SUM(M18:M21) ->  | N22: sub-total | O22: =SUM(O18:O21) ->  | U22: cals in | V22: =7*1200 -> 8400
A23: dinner | B23: metamucil (3tsp) | C23: =#REF! ->  | D23: metamucil (3tsp) | E23: =#REF! ->  | H23: metamucil (3tsp) | I23: =#REF! ->  | J23: metamucil (3tsp) | K23: =#REF! ->  | L23: metamucil (3tsp) | M23: =#REF! ->  | N23: metamucil (3tsp) | O23: =#REF! ->  | U23: exer out | V23: =7*500 -> 3500
B24: tomato soup | C24: 125 | F24: sushi | G24: 400 | H24: soup | I24: 125 | J24: soup | K24: 125 | L24: soup | M24: 125 | N24: treat dinner | O24: 400 | U24: bmr | V24: =1698*7 -> 11886
B25: beef | C25: 244 | V25: =V22-V23-V24 -> -6986
B26: sub-total | C26: =SUM(C23:C25) ->  | D26: sub-total | E26: =SUM(E23:E25) ->  | F26: sub-total | G26: =SUM(G23:G25) -> 400 | H26: sub-total | I26: =SUM(I23:I25) ->  | J26: sub-total | K26: =SUM(K23:K25) ->  | L26: sub-total | M26: =SUM(M23:M25) ->  | N26: sub-total | O26: =SUM(O23:O25) -> 
A27: snacks | B27: carmans | C27: 150
B28: carmans | C28: 150
B29: sub-total | C29: =SUM(C27:C28) -> 300 | D29: sub-total | E29: =SUM(E27:E28) -> 0 | F29: sub-total | G29: =SUM(G27:G28) -> 0 | H29: sub-total | I29: =SUM(I27:I28) -> 0 | J29: sub-total | K29: =SUM(K27:K28) -> 0 | L29: sub-total | M29: =SUM(M27:M28) -> 0 | N29: sub-total | O29: =SUM(O27:O28) -> 0
A30: Total | C30: =SUM(C17+C22+C26+C29) ->  | E30: =SUM(E17+E22+E26+E29) ->  | G30: =SUM(G17+G22+G26+G29) ->  | I30: =SUM(I17+I22+I26+I29) ->  | K30: =SUM(K17+K22+K26+K29) ->  | M30: =SUM(M17+M22+M26+M29) ->  | O30: =SUM(O17+O22+O26+O29) ->  | Q30: weekly total | R30: =SUM(C30:O30) ->  | V30: food cal | W30: =R30 -> 
V31: exer out | W31: =SUM(C34,E34,G34,I34,K34,M34,O34) -> 2500
A32: remaining calories | C32: =C30-$C$1 ->  | E32: =E30-$C$1 ->  | G32: =G30-$C$1 ->  | I32: =I30-$C$1 ->  | K32: =K30-$C$1 ->  | M32: =M30-$C$1 ->  | O32: =O30-$C$1 ->  | Q32: left over | R32: =R30-D1 ->  | V32: bmr | W32: =SUM(C38,E38,G38,I38,K38,M38,O38) -> 11886
A34: Exercise | C34: 0 | E34: 0 | G34: 500 | I34: 500 | K34: 500 | M34: 500 | O34: 500 | Q34: avg cal / day | R34: =R30/7 ->  | V34: total | W34: =W30-W31-W32 -> 
B36: Energy balance | C36: =C30-C34 ->  | E36: =E30-E34 ->  | G36: =G30-G34 ->  | I36: =I30-I34 ->  | K36: =K30-K34 ->  | M36: =M30-M34 ->  | O36: =O30-O34 -> 
B38: basal metabolic rate | C38: 1698 | E38: 1698 | G38: 1698 | I38: 1698 | K38: 1698 | M38: 1698 | O38: 1698 | R38: =SUM(C38,E38,G38,I38,K38,M38,O38) -> 11886
S39: deficit | T39: =R30-R38 ->  | U39: =V22-R38 -> -3486
B40: balance for day | C40: =C30-C38-C34 ->  | E40: =E30-E38-E34 ->  | G40: =G30-G38-G34 ->  | I40: =I30-I38-I34 ->  | K40: =K30-K38-K34 ->  | M40: =M30-M38-M34 ->  | O40: =O30-O38-O34 -> 
A42: every step you take, every change you make on the 12WBT takes you in the right direction away from the person you were in that before photo :D

Sheet Week 12 (hidden)
A1: Week 8 | B1: Calorie limit | C1: 1200 | D1: =C1*7 -> 8400
B9: ACCELERATOR DAY | D9: ACCELERATOR DAY | H9: ACCELERATOR DAY | L9: ACCELERATOR DAY
B10: Monday 6 August | D10: Tuesday 7 | F10: Wednesday 8 | H10: Thursday 9 | J10: Friday 10 | L10: Saturday 11 | N10: Sunday 12 | Q10: Notes
B11: Notes: 8-2 PBL. Buy salad sandwich, pack snacks | D11: Notes: | F11: Notes: | H11: Notes: 10 - 3 PBL. Buy salad sandwich, pack snacks | L11: Notes: | N11: Notes:
A12: breakfast | F12: special k | G12: 166 | H12: omelette | I12: 327 | J12: special k | K12: 166 | L12: omelette | M12: 327 | N12: baked beans & toast | O12: 300
B13: metamucil (3tsp) | C13: =#REF! ->  | D13: metamucil (3tsp) | E13: =#REF! ->  | F13: metamucil (3tsp) | G13: =#REF! ->  | H13: metamucil (3tsp) | I13: =#REF! ->  | J13: metamucil (3tsp) | K13: =#REF! ->  | L13: metamucil (3tsp) | M13: =#REF! ->  | N13: metamucil (3tsp) | O13: =#REF! -> 
B14: meds, celery | C14: 0 | D14: meds, celery | E14: 0 | F14: meds, celery | G14: 0 | H14: meds, celery | I14: 0 | J14: meds, celery | K14: 0 | L14: meds, celery | M14: 0 | N14: meds, celery | O14: 0
B17: sub-total | C17: =SUM(C12:C16) ->  | D17: sub-total | E17: =SUM(E12:E15) ->  | F17: sub-total | G17: =SUM(G12:G15) ->  | H17: sub-total | I17: =SUM(I12:I15) ->  | J17: sub-total | K17: =SUM(K12:K16) ->  | L17: sub-total | M17: =SUM(M12:M15) ->  | N17: sub-total | O17: =SUM(O12:O15) -> 
A18: lunch | B18: metamucil (3tsp) | C18: =#REF! ->  | F18: metamucil (3tsp) | G18: =#REF! ->  | H18: metamucil (3tsp) | I18: =#REF! ->  | J18: metamucil (3tsp) | K18: =#REF! ->  | L18: metamucil (3tsp) | M18: =#REF! ->  | N18: metamucil (3tsp) | O18: =#REF! -> 
B19: soup | C19: 250 | D19: tuna, tomato, beet | E19: 200 | F19: soup | G19: 250 | H19: soup | I19: 250 | J19: wrap tuna salad | K19: 300 | L19: soup | M19: 250 | N19: soup | O19: 250
B20: dates | C20: 50
B22: sub-total | C22: =SUM(C18:C21) ->  | D22: sub-total | E22: =SUM(E18:E21) -> 200 | F22: sub-total | G22: =SUM(G18:G21) ->  | H22: sub-total | I22: =SUM(I18:I21) ->  | J22: sub-total | K22: =SUM(K18:K21) ->  | L22: sub-total | M22: =SUM(M18:M21) ->  | N22: sub-total | O22: =SUM(O18:O21) -> 
A23: dinner | B23: tuna, tomato, beetroot | C23: 150 | D23: metamucil (3tsp) | E23: =#REF! ->  | F23: metamucil (3tsp) | G23: =#REF! ->  | H23: metamucil (3tsp) | I23: =#REF! ->  | J23: metamucil (3tsp) | K23: =#REF! ->  | L23: metamucil (3tsp) | M23: =#REF! ->  | N23: metamucil (3tsp) | O23: =#REF! -> 
B24: soup | C24: 250 | F24: sushi | G24: 350 | H24: soup | I24: 250 | J24: soup | K24: 250 | L24: soup | M24: 250 | N24: soup | O24: 250
B26: sub-total | C26: =SUM(C23:C25) -> 400 | D26: sub-total | E26: =SUM(E23:E25) ->  | F26: sub-total | G26: =SUM(G23:G25) ->  | H26: sub-total | I26: =SUM(I23:I25) ->  | J26: sub-total | K26: =SUM(K23:K25) ->  | L26: sub-total | M26: =SUM(M23:M25) ->  | N26: sub-total | O26: =SUM(O23:O25) -> 
A27: snacks
B29: sub-total | C29: =SUM(C27:C28) -> 0 | D29: sub-total | E29: =SUM(E27:E28) -> 0 | F29: sub-total | G29: =SUM(G27:G28) -> 0 | H29: sub-total | I29: =SUM(I27:I28) -> 0 | J29: sub-total | K29: =SUM(K27:K28) -> 0 | L29: sub-total | M29: =SUM(M27:M28) -> 0 | N29: sub-total | O29: =SUM(O27:O28) -> 0
A30: Total | C30: =SUM(C17+C22+C26+C29) ->  | E30: =SUM(E17+E22+E26+E29) ->  | G30: =SUM(G17+G22+G26+G29) ->  | I30: =SUM(I17+I22+I26+I29) ->  | K30: =SUM(K17+K22+K26+K29) ->  | M30: =SUM(M17+M22+M26+M29) ->  | O30: =SUM(O17+O22+O26+O29) ->  | Q30: weekly total | R30: =SUM(C30:O30) -> 
A32: remaining calories | C32: =C30-$C$1 ->  | E32: =E30-$C$1 ->  | G32: =G30-$C$1 ->  | I32: =I30-$C$1 ->  | K32: =K30-$C$1 ->  | M32: =M30-$C$1 ->  | O32: =O30-$C$1 ->  | Q32: left over | R32: =R30-D1 -> 
A34: Exercise | Q34: avg cal / day | R34: =R30/7 -> 
B36: Energy balance | C36: =C30-C34 ->  | E36: =E30-E34 ->  | G36: =G30-G34 ->  | I36: =I30-I34 ->  | K36: =K30-K34 ->  | M36: =M30-M34 ->  | O36: =O30-O34 -> 
B38: basal metabolic rate | C38: 1728 | E38: 1728 | G38: 1728 | I38: 1728 | K38: 1728 | M38: 1728 | O38: 1728
B40: balance for day | C40: =C30-C38-C34 ->  | E40: =E30-E38-E34 ->  | G40: =G30-G38-G34 ->  | I40: =I30-I38-I34 ->  | K40: =K30-K38-K34 ->  | M40: =M30-M38-M34 ->  | O40: =O30-O38-O34 -> 
A42: every step you take, every change you make on the 12WBT takes you in the right direction away from the person you were in that before photo :D

Sheet David - Week 1 (hidden)
A1: Week 1 | B1: Calorie limit | C1: 1800 | D1: =C1*7 -> 12600
B3: Monday | D3: Tuesday | F3: Wednesday | H3: Thursday | J3: Friday | L3: Saturday | N3: Sunday | Q3: Notes
B4: Notes: | D4: Notes: | F4: Notes: | H4: Notes: | J4: Notes: | L4: Notes: | N4: Notes:
A5: breakfast | B5: =#REF! ->  | C5: =#REF! ->  | D5: =#REF! ->  | E5: =#REF! ->  | F5: =#REF! ->  | G5: =#REF! ->  | H5: =#REF! ->  | I5: =#REF! ->  | J5: =#REF! ->  | K5: =#REF! -> 
B6: =#REF! ->  | C6: =#REF! ->  | D6: =#REF! ->  | E6: =#REF! ->  | F6: =#REF! ->  | G6: =#REF! ->  | H6: =#REF! ->  | I6: =#REF! ->  | J6: =#REF! ->  | K6: =#REF! -> 
B7: =#REF! ->  | C7: =#REF! ->  | D7: =#REF! ->  | E7: =#REF! ->  | F7: =#REF! ->  | G7: =#REF! ->  | H7: =#REF! ->  | I7: =#REF! ->  | J7: =#REF! ->  | K7: =#REF! -> 
B10: sub-total | C10: =SUM(C5:C9) ->  | D10: sub-total | E10: =SUM(E5:E9) ->  | F10: sub-total | G10: =SUM(G5:G9) ->  | H10: sub-total | I10: =SUM(I5:I9) ->  | J10: sub-total | K10: =SUM(K5:K9) ->  | L10: sub-total | M10: =SUM(M5:M9) -> 0 | N10: sub-total | O10: =SUM(O5:O9) -> 0
A11: lunch | B11: =#REF! ->  | C11: =#REF! ->  | D11: =#REF! ->  | E11: =#REF! ->  | F11: =#REF! ->  | G11: =#REF! ->  | H11: =#REF! ->  | I11: =#REF! ->  | J11: =#REF! ->  | K11: =#REF! -> 
B15: sub-total | C15: =SUM(C11:C14) ->  | D15: sub-total | E15: =SUM(E11:E14) ->  | F15: sub-total | G15: =SUM(G11:G14) ->  | H15: sub-total | I15: =SUM(I11:I14) ->  | J15: sub-total | K15: =SUM(K11:K14) ->  | L15: sub-total | M15: =SUM(M11:M14) -> 0 | N15: sub-total | O15: =SUM(O11:O14) -> 0
A16: dinner
B17: =#REF! ->  | C17: =#REF! ->  | D17: =#REF! ->  | E17: =#REF! ->  | F17: cauliflower soup | G17: 300 | H17: cauliflower soup | I17: 300 | J17: =#REF! ->  | K17: =#REF! ->  | L17: =#REF! ->  | M17: =#REF! ->  | N17: =#REF! ->  | O17: =#REF! -> 
B19: sub-total | C19: =SUM(C16:C18) ->  | D19: sub-total | E19: =SUM(E16:E18) ->  | F19: sub-total | G19: =SUM(G16:G18) -> 300 | H19: sub-total | I19: =SUM(I16:I18) -> 300 | J19: sub-total | K19: =SUM(K16:K18) ->  | L19: sub-total | M19: =SUM(M16:M18) ->  | N19: sub-total | O19: =SUM(O16:O18) -> 
A20: snacks | B20: =#REF! ->  | C20: =#REF! ->  | D20: =#REF! ->  | E20: =#REF! ->  | F20: =#REF! ->  | G20: =#REF! ->  | H20: =#REF! ->  | I20: =#REF! ->  | J20: =#REF! ->  | K20: =#REF! -> 
B21: =#REF! ->  | C21: =#REF! ->  | D21: =#REF! ->  | E21: =#REF! ->  | F21: =#REF! ->  | G21: =#REF! ->  | H21: =#REF! ->  | I21: =#REF! ->  | J21: =#REF! ->  | K21: =#REF! -> 
B24: sub-total | C24: =SUM(C20:C21) ->  | D24: sub-total | E24: =SUM(E20:E23) ->  | F24: sub-total | G24: =SUM(G20:G23) ->  | H24: sub-total | I24: =SUM(I20:I23) ->  | J24: sub-total | K24: =SUM(K20:K23) ->  | L24: sub-total | M24: =SUM(M20:M23) -> 0 | N24: sub-total | O24: =SUM(O20:O23) -> 0
A25: Total | C25: =SUM(C10+C15+C19+C24) ->  | E25: =SUM(E10+E15+E19+E24) ->  | G25: =SUM(G10+G15+G19+G24) ->  | I25: =SUM(I10+I15+I19+I24) ->  | K25: =SUM(K10+K15+K19+K24) ->  | M25: =SUM(M10+M15+M19+M24) ->  | O25: =SUM(O10+O15+O19+O24) ->  | Q25: weekly total | R25: =SUM(C25:O25) -> 
C27: =C25-$C$1 ->  | E27: =E25-$C$1 ->  | G27: =G25-$C$1 ->  | I27: =I25-$C$1 ->  | K27: =K25-$C$1 ->  | M27: =M25-$C$1 ->  | O27: =O25-$C$1 ->  | Q27: left over | R27: =R25-D1 -> 
Q29: avg cal / day | R29: =R25/7 -> 
